Cogmind - Beta 10.2 @@@ ROGUE MODE // 2021.11.08 @ 13:17:08 Player: Perseus Result: Establishing Free Derelict Territories! Performance ------------- Evolutions (9) 4500 Regions Visited (35) 7000 Robots Destroyed (336) 1680 Value Destroyed (15662) 15662 Prototype IDs (115) 2300 Alien Tech Used (0) 0 Bonus (44262) 44262 TOTAL SCORE: 75404 Bonus ------- Triggered High Security 500 High Alert Combat Kills 3645 Follower Combat Kills 3730 Entered Garrisons 800 Used RIF Installer 1500 Network Hubs Disabled 400 Aligned with FarCom 300 Met Data Miner 300 Met Imprinter 300 Met Warlord at Base 500 MAIN.C Attacked Warlord 500 Warlord Defense Kill 648 Built Enhanced Grunts 300 A7 Reached Mainframe 300 Met R17 at Cetus 500 Met R17 at Research 2000 Met Warlord at Research 2000 Invited to Help at Command 2000 Met MAIN.C 5000 Hacked MAIN.C 300 Destroyed MAIN.C Shell 5000 Destroyed MAIN.C 10000 Met Warlord at Command 2000 Win 3000 Friendly Fire -1261 Cogmind --------- Core Integrity 1568/1600 Matter 7/300 Energy 990/990 System Corruption 3% Temperature Cool (0) Movement Walking (112) Location Free Derelict Territories Parts ------- > --- POWER (2) -------- Particle Reactor Improved Quantum Reactor > --- PROPULSION (5) --- Biometal Leg Biometal Leg Enhanced Biometal Leg Centrium Leg Centrium Leg > --- UTILITY (14) ----- Advanced Heat Sink Advanced Cooling System Experimental Cooling System Large Storage Unit Large Storage Unit Large Storage Unit High-capacity Battery Experimental Terrain Scan Processor Advanced Targeting Computer Experimental Targeting Computer Experimental Core Analyzer Advanced Armor Integrity Analyzer Advanced Force Field Advanced Hacking Suite > --- WEAPON (4) ------- Phase Gun Enhanced Quantum Rifle Enhanced Quantum Rifle Linear Accelerator > --- INVENTORY (22) --- Light Quantum Reactor Light Quantum Reactor Vortex Chain Reactor Centrium Leg Centrium Leg Experimental Cooling System Medium Matter Pod (0) Experimental Sensor Array Advanced Signal Interpreter Long-range Terrain Scanner Antimissile System Improved System Restoration Module Compact HERF Cannon Nova Cannon Enhanced Nova Cannon Heavy Flak Cannon Micro-nuke Launcher Advanced Remote Datajack Field Lobotomy Kit Peak State ------------ > --- POWER ------------ Particle Reactor Improved Quantum Reactor > --- PROPULSION ------- Biometal Leg Biometal Leg Enhanced Biometal Leg Centrium Leg Centrium Leg > --- UTILITY ---------- Advanced Heat Sink Advanced Cooling System Large Storage Unit Large Storage Unit Large Storage Unit Inertial Stasis Machine Experimental Terrain Scan Processor Advanced Targeting Computer Experimental Targeting Computer Experimental Core Analyzer Advanced Armor Integrity Analyzer Advanced Phase Shifter Advanced Force Field Advanced Hacking Suite > --- WEAPON ----------- Enhanced Quantum Rifle Compact HERF Cannon Helical Railgun Linear Accelerator > --- INVENTORY -------- Light Quantum Reactor Light Quantum Reactor Vortex Chain Reactor Enhanced Biometal Leg Centrium Leg Experimental Cooling System Experimental Cooling System High-capacity Battery Experimental Sensor Array Advanced Signal Interpreter Long-range Terrain Scanner Antimissile System Improved System Restoration Module Enhanced Quantum Rifle Enhanced Quantum Rifle Nova Cannon Enhanced Nova Cannon Heavy Flak Cannon Micro-nuke Launcher Advanced Remote Datajack Field Lobotomy Kit [Rating: 188] Favorites ----------- Power Improved Deuterium Engine Engine Improved Deuterium Engine Power Core Reinforced Fission Core Reactor Light Antimatter Reactor Propulsion Flexi-carbon Leg Treads Medium Treads Leg Flexi-carbon Leg Wheel Armored Huge Wheel Hover Unit Aerolev Unit Flight Unit Improved Diametric Drive Utility Large Storage Unit Device Advanced Heat Sink Storage Large Storage Unit Processor Advanced Targeting Computer Hackware Relay Coupler [Swarmer] Protection Improved Utility Shielding Weapon Advanced Beam Rifle Energy Gun Advanced Beam Rifle Energy Cannon Improved EM Pulse Cannon Ballistic Gun Gauss Rifle Ballistic Cannon Linear Accelerator Launcher Heavy Rocket Launcher Special Weapon Advanced Remote Datajack Impact Weapon Heavy Hammer Slashing Weapon Axe Piercing Weapon Plasma Lance Special Melee Weapon Datajack Build | -11 -10 -10 -10 -9 -8 -7 -7 -7 -7 -6 -6 -6 -6 -6 -5 -5 -5 -5 -5 -4 -4 -4 -4 -4 -4 -3 -3 -3 -3 -2 -2 -2 -2 -1 -1 ------- Run | Scr Mat Min Exi Min Mat Fac Low Low Dat Pro Fac Low Low Zio Pro Fac Upp Upp War Pro Fac Ext Cet Arc Hub Res Gar Res Gar Res Gar Res Gar Acc Com Slots Evolved 18 | . . . . . 4 2 . . . . 2 . . . . 2 . . . . 2 . . . . 2 . . . 2 . . . 2 . Power 1 | . . . . . . . . . . . 1 . . . . . . . . . . . . . . . . . . . . . . . . Propulsion 3 | . . . . . 1 . . . . . . . . . . 1 . . . . 1 . . . . . . . . . . . . . . Utility 12 | . . . . . 2 2 . . . . 1 . . . . 1 . . . . 1 . . . . 1 . . . 2 . . . 2 . Weapon 2 | . . . . . 1 . . . . . . . . . . . . . . . . . . . . 1 . . . . . . . . . Parts Attached 844 | 2 19 11 . 12 41 13 26 10 3 29 37 25 32 4 24 17 30 28 26 4 21 38 18 3 28 23 50 12 54 57 53 13 26 22 33 Power 61 | . 3 1 . 2 2 . 2 . . 1 2 4 3 . 1 . 1 2 3 . 1 4 6 1 . 3 4 2 5 2 2 1 . 2 1 Engine 20 | . 3 1 . 1 1 . 1 . . 1 1 3 3 . 1 . . 2 2 . . . . . . . . . . . . . . . . Core 6 | . . . . 1 1 . 1 . . . . 1 . . . . 1 . . . . 1 . . . . . . . . . . . . . Reactor 35 | . . . . . . . . . . . 1 . . . . . . . 1 . 1 3 6 1 . 3 4 2 5 2 2 1 . 2 1 Propulsion 117 | . 6 3 . 2 7 . . 5 . . 6 5 2 . . 2 . 3 10 . 4 9 1 . 5 4 7 2 5 9 6 1 . 7 6 Treads 2 | . . . . . . . . . . . . 2 . . . . . . . . . . . . . . . . . . . . . . . Leg 105 | . 3 1 . 1 6 . . 5 . . 5 3 2 . . 2 . 3 8 . 4 9 1 . 5 4 7 2 5 9 6 1 . 7 6 Wheel 7 | . 3 2 . 1 . . . . . . 1 . . . . . . . . . . . . . . . . . . . . . . . . Hover 2 | . . . . . 1 . . . . . . . . . . . . . 1 . . . . . . . . . . . . . . . . Flight 1 | . . . . . . . . . . . . . . . . . . . 1 . . . . . . . . . . . . . . . . Utility 416 | 2 3 1 . 1 11 6 19 5 1 23 10 15 17 2 17 8 22 15 9 3 10 18 7 . 21 11 24 6 29 30 26 8 16 6 14 Device 296 | 1 . . . 1 4 3 15 4 . 11 7 12 14 2 12 4 16 10 5 2 5 10 5 . 15 8 20 5 24 26 20 7 11 5 12 Storage 24 | . 3 . . . 1 . . . . 1 1 2 . . . 1 . 1 1 . 2 . . . 3 1 . . 5 . . . . . 2 Processor 19 | 1 . 1 . . . 1 . . . . 2 1 1 . . 2 . . 1 . . 2 . . 1 1 . . . 3 1 . 1 . . Hackware 13 | . . . . . . . . . . . . . . . . 1 . . . . . . . . . . . . . 1 5 1 4 1 . Protection 64 | . . . . . 6 2 4 1 1 11 . . 2 . 5 . 6 4 2 1 3 6 2 . 2 1 4 1 . . . . . . . Artifact . | . . . . . . . . . . . . . . . . . . . . . . . . . . . . . . . . . . . . Weapon 250 | . 7 6 . 7 21 7 5 . 2 5 19 1 10 2 6 7 7 8 4 1 6 7 4 2 2 5 15 2 15 16 19 3 10 7 12 Energy Gun 85 | . 1 . . 1 7 3 3 . 1 3 10 1 1 1 . . . 3 2 . . 3 2 1 . 2 7 1 9 5 6 1 6 2 3 Energy Cannon 40 | . . . . . 2 1 . . . . . . 2 1 2 4 4 3 . 1 3 . 1 . . 1 6 1 . 2 3 . . 2 1 Ballistic Gun 68 | . 5 4 . 4 7 . . . . . 2 . 5 . 3 2 2 2 1 . 3 4 1 1 2 2 2 . 4 6 3 . . 1 2 Ballistic Cannon 13 | . . . . . . 2 . . . 1 4 . . . . . . . . . . . . . . . . . 1 . 1 1 . 1 2 Launcher 17 | . . 2 . 2 1 1 2 . . 1 1 . . . 1 1 1 . . . . . . . . . . . 1 . 2 . . . 1 Special Weapon 16 | . . . . . . . . . . . 1 . . . . . . . . . . . . . . . . . . 2 4 1 4 1 3 Impact Weapon 5 | . 1 . . . 4 . . . . . . . . . . . . . . . . . . . . . . . . . . . . . . Slashing Weapon 2 | . . . . . . . . . . . . . 2 . . . . . . . . . . . . . . . . . . . . . . Piercing Weapon 2 | . . . . . . . . . . . . . . . . . . . 1 . . . . . . . . . . 1 . . . . . Special Melee Weapon 2 | . . . . . . . . . 1 . 1 . . . . . . . . . . . . . . . . . . . . . . . . Unidentified Prototypes 32 | . . . . . 3 1 . . . 1 . . . 1 . 1 . 1 8 . . . 2 . 4 2 . 1 . 6 . . . . 1 Parts Lost 61 | . 5 1 . . . . . . . . 9 3 1 . . . . . 2 . 2 16 . . . 1 4 . 4 6 2 . 2 1 2 Power 8 | . . . . . . . . . . . 1 2 . . . . . . 1 . . 3 . . . . . . . . . . 1 . . Propulsion 10 | . 2 . . . . . . . . . 1 . . . . . . . . . . 6 . . . . . . . 1 . . . . . Utility 16 | . . 1 . . . . . . . . 3 1 1 . . . . . . . 1 3 . . . 1 1 . 1 2 . . . . 1 Weapon 27 | . 3 . . . . . . . . . 4 . . . . . . . 1 . 1 4 . . . . 3 . 3 3 2 . 1 1 1 Highest Loss Streak 10 | . 4 1 . . . . . . . . 4 3 1 . . . . . 2 . 1 10 . . . 1 2 . 2 5 2 . 1 1 2 Average Slot Usage (%) 98 | . 99 100 100 100 97 95 100 100 100 99 90 88 99 99 99 98 99 100 99 94 99 95 100 100 100 99 99 99 99 98 99 100 99 98 99 Engine 5 | . 14 14 14 14 5 7 4 7 7 7 3 4 13 13 13 11 10 5 10 . . . . . . . . . . . . . . . . Reactor 3 | . . . . . . . . . . . 2 1 . . . . . . . 5 9 8 9 10 10 9 9 9 9 8 8 8 8 7 8 Leg 19 | . 14 14 14 14 24 23 23 23 23 23 19 4 20 20 20 23 23 23 22 23 26 24 26 26 26 23 23 23 23 20 21 21 21 19 19 Wheel 1 | . 12 14 14 14 1 . . . . . . 5 . . . . . . . . . . . . . . . . . . . . . . . Device 17 | . 14 1 . 10 13 16 22 22 23 22 15 27 24 25 25 15 15 14 13 10 8 14 10 10 13 12 11 13 14 16 11 11 9 14 17 Storage 10 | . 14 14 14 14 9 7 7 7 7 7 6 11 6 6 6 8 11 11 13 17 15 15 15 15 15 14 14 14 14 13 13 13 13 12 13 Processor 13 | . . 12 14 3 . 6 7 7 7 7 11 6 13 13 13 13 17 17 17 17 15 10 15 15 15 17 19 19 18 17 26 26 24 24 20 Protection 2 | . . . . . 12 9 7 7 7 7 10 . . . . 5 1 2 . . 6 2 4 5 1 2 1 . . . . . . . . Energy Gun 7 | . 8 . . 12 13 21 20 23 20 22 14 6 . . . . . 3 5 5 1 2 9 6 5 9 8 5 8 7 4 7 5 5 6 Energy Cannon 2 | . . . . . 2 . 1 . . . . . 5 5 6 5 5 4 4 4 5 . . . . 2 2 7 . . 3 . . 1 3 Ballistic Gun 7 | . 18 27 28 15 10 . . . . . 1 13 12 13 12 10 10 6 5 5 8 11 5 8 10 6 6 4 6 7 7 4 4 3 2 Naked Turns . | . . . . . . . . . . . . . . . . . . . . . . . . . . . . . . . . . . . . Heaviest Build 140 | 10 16 16 13 19 54 56 56 57 45 68 53 67 59 55 59 65 76 81 95 73 108 118 119 112 120 122 109 115 123 133 132 130 120 135 140 Greatest Support 146 | 20 20 16 16 16 51 49 49 50 48 48 53 51 56 56 56 76 76 76 90 90 120 120 120 120 136 141 136 113 113 144 144 144 144 144 146 Greatest Overweight (x) 2 | . 1 . . 1 2 1 1 1 . 1 1 2 1 . 1 . . 1 1 . . 1 . . . . . 1 1 1 . . . 1 . Average Overweight (x) . | . . . . . . . . . . . . 1 . . . . . . . . . . . . . . . . . . . . . . . Largest Inventory Capacity 22 | 6 8 8 8 8 10 10 10 10 10 10 10 10 10 10 10 14 14 16 20 20 22 22 22 22 22 22 22 22 22 22 22 22 22 22 22 Average Capacity 14 | 6 6 8 8 8 9 10 10 10 10 10 10 10 10 10 10 12 14 14 17 20 21 22 22 22 22 22 22 22 22 22 22 22 22 22 22 Most Carried 22 | 6 7 8 8 8 10 10 10 10 10 10 10 10 10 10 10 14 14 16 20 20 22 22 22 22 22 22 22 22 22 22 22 22 22 22 22 Average Carried 14 | 5 5 7 7 7 9 9 9 9 10 9 9 9 9 9 9 11 13 14 17 20 20 20 21 22 21 21 21 21 21 21 21 21 21 21 21 Final Capacity 22 | 6 8 8 8 8 10 10 10 10 10 10 10 10 10 10 10 14 14 16 20 20 22 22 22 22 22 22 22 22 22 22 22 22 22 22 22 Final Carried 22 | 6 7 8 8 8 10 10 10 10 10 10 10 10 10 10 10 14 14 16 20 20 22 22 22 22 22 22 22 22 22 22 22 21 22 22 20 Class Distribution -------------------- 61% | Scavenger-Mutant 20% | Scavenger-Skirmisher 13% | Scavenger-Gunner Dominant Class ---------------- Mutant | -10/Materials Scavenger-Mutant | -10/Mines Scavenger-Mutant | -10/Exiles Scavenger-Skirmisher | -9/Mines Scavenger-Skirmisher | -8/Materials Tank | -7/Factory Scavenger-Skirmisher | -7/Lower Caves Scavenger-Mutant | -7/Lower Caves Scavenger-Mutant | -7/Data Miner Scavenger-Mutant | -6/Proximity Caves Scavenger-Skirmisher | -6/Factory Scavenger-Mutant | -6/Lower Caves Scavenger-Mutant | -6/Lower Caves Scavenger-Mutant | -6/Zion Scavenger-Mutant | -5/Proximity Caves Scavenger-Mutant | -5/Factory Scavenger-Mutant | -5/Upper Caves Scavenger-Mutant | -5/Upper Caves Scavenger-Mutant | -5/Warlord Scavenger-Skirmisher | -4/Proximity Caves Scavenger-Skirmisher | -4/Factory Scavenger-Gunner | -4/Extension Scavenger-Gunner | -4/Cetus Scavenger-Gunner | -4/Archives Scavenger-Gunner | -4/Hub_04(d) Scavenger-Mutant | -3/Research Scavenger-Mutant | -3/Garrison Scavenger-Mutant | -3/Research Scavenger-Mutant | -3/Garrison Scavenger-Gunner | -2/Research Scavenger-Mutant | -2/Garrison Scavenger-Gunner | -2/Research Scavenger-Mutant | -2/Garrison Scavenger-Mutant | -1/Access Scavenger-Mutant | -1/Command Resources | -11 -10 -10 -10 -9 -8 -7 -7 -7 -7 -6 -6 -6 -6 -6 -5 -5 -5 -5 -5 -4 -4 -4 -4 -4 -4 -3 -3 -3 -3 -2 -2 -2 -2 -1 -1 ----------- Run | Scr Mat Min Exi Min Mat Fac Low Low Dat Pro Fac Low Low Zio Pro Fac Upp Upp War Pro Fac Ext Cet Arc Hub Res Gar Res Gar Res Gar Res Gar Acc Com Matter Collected 14733 | 363 206 243 . 227 551 97 411 100 . 394 376 611 453 50 318 404 507 438 284 62 216 988 226 60 584 389 1116 123 1224 1007 1129 157 768 336 315 Remotely . | . . . . . . . . . . . . . . . . . . . . . . . . . . . . . . . . . . . . Salvage Created 19137 | 188 383 365 . 463 1033 173 389 301 . 158 1067 498 835 . 375 1895 589 352 134 254 288 1073 315 . 787 510 1569 193 2156 326 1118 448 515 163 224 Parts 762 | 24 30 37 . 24 60 8 15 7 . 7 47 13 14 . 9 61 19 12 7 4 10 45 11 . 34 25 49 14 63 15 45 21 22 5 5 Haulers Intercepted 6 | . . . . . 2 . . . . . . . . . . . . 1 . . . . . . 2 1 . . . . . . . . . Recyclers Shooed 30 | . 3 1 . 2 3 . . . . . 1 . . . . 11 . . . . 1 2 . . . 3 . . . . . . . 1 2 Parts Field Recycled . | . . . . . . . . . . . . . . . . . . . . . . . . . . . . . . . . . . . . Retrieved Matter . | . . . . . . . . . . . . . . . . . . . . . . . . . . . . . . . . . . . . Parts Self-Destructed 127 | . . . . . . . 6 3 . 8 . 13 7 1 23 . 9 10 43 4 . . . . . . . . . . . . . . . Prevented 60 | . . . . . . . 4 . . 1 . 3 2 . 1 . 6 12 31 . . . . . . . . . . . . . . . . Kills | -11 -10 -10 -10 -9 -8 -7 -7 -7 -7 -6 -6 -6 -6 -6 -5 -5 -5 -5 -5 -4 -4 -4 -4 -4 -4 -3 -3 -3 -3 -2 -2 -2 -2 -1 -1 ------- Run | Scr Mat Min Exi Min Mat Fac Low Low Dat Pro Fac Low Low Zio Pro Fac Upp Upp War Pro Fac Ext Cet Arc Hub Res Gar Res Gar Res Gar Res Gar Acc Com Combat Hostiles Destroyed 231 | . 9 9 . 9 11 7 9 3 . 7 15 5 3 . 4 3 7 4 4 2 3 13 4 . 6 5 23 3 22 5 21 5 7 1 2 Melee 1 | . 1 . . . . . . . . . . . . . . . . . . . . . . . . . . . . . . . . . . Guns 158 | . 8 5 . 4 7 2 5 3 . 3 10 5 3 . 2 1 3 2 4 2 . 9 4 . 6 5 19 1 16 5 15 3 6 . . Cannons 24 | . . . . . 1 . . . . . . . . . 2 . 2 2 . . 1 4 . . . . 3 2 2 . 1 2 1 1 . AOE 41 | . . 4 . 5 3 5 4 . . 4 3 . . . . . 2 . . . . . . . . . 1 . 3 . 5 . . . 2 Classes Destroyed 21 | 3 2 1 . 1 4 . 1 1 . . 3 . . . 1 . . . 2 . . . . . . . 1 . . . 1 . . . . Worker 32 | 2 1 5 . 3 2 . . . . . 4 . . . . 10 . . . . . . . . 2 1 . . . . . . . . 2 Builder 8 | . . 2 . . . . . . . . 1 . . . . 2 . . . . . 2 . . . . . . . . . 1 . . . Tunneler 10 | 5 . 1 . 2 . . . . . . . . . . . 1 . . . . . . . . . . . . . . . 1 . . . Hauler 6 | . . . . . 2 . . . . . . . . . . . . 1 . . . . . . 2 1 . . . . . . . . . Recycler 25 | 1 3 2 . 3 3 . . . . . . . . . . 10 . . . . . 1 . . . . . . . . . . . 1 1 Minesweeper 1 | . . . . . . . . . . . . . . . 1 . . . . . . . . . . . . . . . . . . . . Mechanic 3 | . . . . . 2 . . . . . 1 . . . . . . . . . . . . . . . . . . . . . . . . Operator 3 | . . . . . . . . . . . 2 . . . . . . . . . 1 . . . . . . . . . . . . . . Watcher 13 | . 1 . . . 4 . . . . . 1 . . . . 2 . . . . . . . . 1 1 . . . 2 . . 1 . . Swarmer 72 | . 9 9 . 6 3 3 7 . . 5 . . . . 2 . . . 1 . . 3 . . . . 5 . 4 1 8 2 2 . 2 Grunt 89 | . . . . 3 3 3 . 3 . . 9 4 . . 1 1 . 3 1 . . 7 1 . 5 5 17 . 11 . 6 2 4 . . Brawler 6 | . . . . . . . . . . . 2 . . . . . 3 . . . . 1 . . . . . . . . . . . . . Duelist 4 | . . . . . . . . . . . 1 . . . . . 2 . . . . . . . 1 . . . . . . . . . . Sentry 21 | . . . . . 4 1 1 . . 1 . . 1 . 1 . 2 . . . 2 2 . . . . . . 5 . 1 . . . . Specialist 1 | . . . . . . . . . . . . . . . . . . . . . . . . . . . . . . . 1 . . . . Hunter 12 | . . . . . 1 . . . . . . . 2 . . 2 . 1 . . 1 . . . . . . . . . 3 2 . . . Programmer 18 | . . . . . . . 1 . . 1 3 . . . . . . . . 2 . . . . . . . 3 1 3 2 . 1 1 . Behemoth 2 | . . . . . . . . . . . . . . . . . . . . . . . . . . . 1 . 1 . . . . . . Cetus Guard 3 | . . . . . . . . . . . . . . . . . . . . . . . 3 . . . . . . . . . . . . Enhanced Grunt 1 | . . . . . . . . . . . . . . . . . . . . . . . . . 1 . . . . . . . . . . Striker 2 | . . . . . . . . . . . . . . . . . . . 1 . . . . . . . . . . 1 . . . . . Executioner 1 | . . . . . . . . . . . . . . . . . . . 1 . . . . . . . . . . . . . . . . Decomposer 6 | . . . . . . . . 3 . . . . 3 . . . . . . . . . . . . . . . . . . . . . . Packrat 3 | . . . . . . . . . . . . . 1 . 2 . . . . . . . . . . . . . . . . . . . . Samaritan 6 | . . . . . . . . 1 . . . 3 1 . . . 1 . . . . . . . . . . . . . . . . . . Thug 1 | . . . . . . . . . . . . 1 . . . . . . . . . . . . . . . . . . . . . . . Butcher 1 | . . . . . . . . . . . . . . . . . . . . . . 1 . . . . . . . . . . . . . Guerrilla 1 | . . . . . . . . . . . . . . . . . . . . . . . 1 . . . . . . . . . . . . Best Kill Streak 8 | 5 5 6 . 5 3 6 4 1 . 4 4 2 1 . 2 5 3 1 2 4 1 5 3 . 8 3 5 3 4 2 4 4 3 1 5 Combat Bots Only 6 | . 3 3 . 3 3 6 4 1 . 4 3 2 1 . 2 1 3 1 2 4 1 5 3 . 4 2 5 3 4 2 4 3 2 1 2 Max Kills in Single Turn 3 | 1 1 2 . 3 2 3 2 1 . 2 3 1 1 . 2 3 1 1 2 1 1 2 2 . 1 1 1 1 3 1 2 2 1 1 1 Gunslinging 1 | . . . . . . . . . . . . . . . . . . . . . . 1 . . . . . . . . . . . . . Exploded 3 | . . 2 . 3 2 3 2 . . 2 1 . . . . . 1 . . . . . . . . . 1 . 3 . 2 . . . 1 Melee 1 | . 1 . . . . . . . . . . . . . . . . . . . . . . . . . . . . . . . . . . Uniques/NPCs Destroyed 1 | . . . . . . . . . . . . . . . . . . . . . . . . . . . . . . . . . . . 1 MAIN.C Shell (-1/Command) Combat | -11 -10 -10 -10 -9 -8 -7 -7 -7 -7 -6 -6 -6 -6 -6 -5 -5 -5 -5 -5 -4 -4 -4 -4 -4 -4 -3 -3 -3 -3 -2 -2 -2 -2 -1 -1 -------- Run | Scr Mat Min Exi Min Mat Fac Low Low Dat Pro Fac Low Low Zio Pro Fac Upp Upp War Pro Fac Ext Cet Arc Hub Res Gar Res Gar Res Gar Res Gar Acc Com Damage Taken 18341 | . 646 216 . 75 358 196 189 198 . 248 1331 443 352 . . 417 116 38 560 138 687 2937 95 77 826 619 1671 367 1086 1928 909 138 888 58 534 Core 2035 | . 140 66 . 8 41 3 . . . 65 153 106 20 . . 43 . . . 18 60 302 . . 77 67 178 . 105 455 51 . 45 . 32 Absorbed by Shields 2211 | . . . . . . . . . . . . . . . . . . . . . . 111 66 . . . 108 . 363 418 723 . 19 . 403 Core Remaining (%) 75 | 100 . . . 14 92 . . . . 90 . . . . 67 . . . . 93 . . . . 61 . . . 73 . . . 62 . 98 Volleys Fired 1446 | 21 64 28 . 42 58 13 25 22 . 23 73 39 31 . 30 75 64 48 11 12 33 51 24 5 39 38 131 15 146 55 80 14 69 22 45 Largest 4 | 2 2 2 . 2 3 3 3 3 . 3 3 3 3 . 3 3 3 3 3 3 3 3 3 3 3 4 4 4 4 4 4 4 4 4 4 Hottest 342 | 60 70 53 . 60 185 185 172 172 . 172 199 120 133 . 127 127 147 172 148 148 172 197 197 196 162 294 266 281 275 261 267 273 292 292 342 Shots Fired 2898 | 42 111 55 . 79 145 30 41 42 . 54 156 68 55 . 40 117 90 54 33 22 66 143 41 12 108 110 280 30 281 145 175 39 128 33 73 Gun 2356 | 42 111 50 . 74 129 23 37 42 . 47 117 68 43 . 22 56 27 47 33 15 42 138 29 12 108 98 260 10 253 127 128 25 96 17 30 Cannon 450 | . . . . . 14 3 . . . 3 36 . 12 . 18 61 61 7 . 7 24 5 12 . . 12 20 20 27 9 31 11 17 15 25 Launcher 38 | . . 5 . 5 2 4 4 . . 4 3 . . . . . 2 . . . . . . . . . . . 1 . 6 . . . 2 Special 54 | . . . . . . . . . . . . . . . . . . . . . . . . . . . . . . 9 10 3 15 1 16 Kinetic 1358 | 21 71 50 . 52 67 1 . . . 3 45 30 32 . 22 56 27 37 11 5 39 125 11 5 76 41 157 5 128 79 74 21 38 17 12 Thermal 969 | 21 40 . . 22 53 14 21 22 . 32 50 . 7 . 1 10 43 11 11 5 8 13 30 7 32 69 109 20 121 44 31 6 72 14 30 Explosive 38 | . . 5 . 5 2 4 4 . . 4 3 . . . . . 2 . . . . . . . . . . . 1 . 6 . . . 2 Electromagnetic 461 | . . . . . 23 11 16 20 . 15 58 38 16 . 17 51 18 6 . 7 19 5 . . . . 12 5 31 13 54 9 3 1 13 Entropic 18 | . . . . . . . . . . . . . . . . . . . 11 5 . . . . . . 2 . . . . . . . . Robot Hit Streak 32 | 6 6 8 . 17 17 5 15 9 . 7 32 8 16 . 9 20 21 19 8 10 14 15 6 8 23 19 22 5 16 12 24 6 15 20 24 Robot Miss Streak 8 | 3 8 3 . 4 6 2 3 3 . 3 5 2 3 . 4 2 5 3 4 1 2 3 1 2 4 4 4 2 3 5 2 3 2 1 2 Penetration Max 2 | . . . . . . . . . . . 1 . 1 . . 1 1 . 1 . 1 1 1 . 1 1 1 . 1 2 1 . . . . Secondary Targets 13 | . 1 1 . . . . 1 . . . . . . . . . . . 2 . . 2 1 . 1 . 2 . . 1 . . 1 . . Max Gunslinging Chain 1 | . 1 1 . . . . 1 . . . . . . . . . . . 1 . . 1 1 . 1 . 1 . . 1 . . 1 . . Shots Hit Robots 1779 | 24 55 31 . 47 87 15 26 25 1 24 94 52 38 . 25 77 34 35 22 19 46 89 20 10 71 66 171 11 182 91 103 21 85 20 62 Core Hits 791 | 13 23 28 . 29 42 13 20 11 . 11 56 14 23 . 9 38 21 11 11 5 12 37 14 2 36 31 56 5 65 29 57 15 23 7 24 Critical Hits 62 | . . . . 1 . . 1 . . . 1 . 2 . . 3 . 1 2 1 . 5 1 . 6 . 14 3 5 1 9 2 3 . 1 Critical Kills 25 | . . . . . . . 1 . . . . . 2 . . . . . 1 . . 1 1 . 2 . 5 1 3 . 4 1 2 . 1 Critical Parts Destroyed 30 | . . . . 1 . . . . . . . . . . . 3 . 1 1 1 . 3 . . 4 . 6 2 2 1 3 1 1 . . Melee Attacks 9 | . 2 . . . 4 . . . 1 . 1 . 1 . . . . . . . . . . . . . . . . . . . . . . Impact 6 | . 2 . . . 4 . . . . . . . . . . . . . . . . . . . . . . . . . . . . . . Slashing 1 | . . . . . . . . . . . . . 1 . . . . . . . . . . . . . . . . . . . . . . Piercing . | . . . . . . . . . . . . . . . . . . . . . . . . . . . . . . . . . . . . Sneak Attacks 2 | . . . . . . . . . 1 . 1 . . . . . . . . . . . . . . . . . . . . . . . . Combat Hostiles . | . . . . . . . . . . . . . . . . . . . . . . . . . . . . . . . . . . . . Follow-up Attacks . | . . . . . . . . . . . . . . . . . . . . . . . . . . . . . . . . . . . . Damage Inflicted 45274 | 222 527 615 . 680 1473 944 956 509 . 774 2703 1008 904 . 589 2270 1157 558 616 606 975 2616 651 260 2610 1837 3776 461 4687 2086 3251 767 2121 566 1499 Guns 32212 | 222 510 258 . 431 977 178 444 459 . 401 1774 1008 642 . 139 820 440 367 616 390 539 2456 651 260 2283 1612 3343 206 3820 1916 1743 557 1752 463 535 Cannons 7144 | . . . . . 189 . . . . . 121 . 262 . 410 1400 418 191 . 216 415 127 . . . 225 300 255 518 170 709 210 369 103 536 Explosions 5809 | . . 357 . 249 307 766 512 50 . 373 808 . . . 40 50 299 . . . . . . . 327 . 133 . 349 . 761 . . . 428 Melee 17 | . 17 . . . . . . . . . . . . . . . . . . . . . . . . . . . . . . . . . . Ramming 92 | . . . . . . . . . . . . . . . . . . . . . 21 33 . . . . . . . . 38 . . . . Kinetic 17523 | 69 230 258 . 280 386 . . . . . 263 368 487 . 139 820 440 297 158 91 475 2232 279 107 1405 789 1859 96 1798 1251 1174 414 854 190 314 Thermal 13890 | 153 280 . . 151 511 163 352 220 . 325 835 . 83 . 40 50 130 70 187 126 64 224 372 153 878 1048 1541 344 1880 735 709 152 1212 367 535 Explosive 4394 | . . 357 . 249 252 683 435 . . 373 396 . . . . . 169 . . . . . . . . . . . 291 . 761 . . . 428 Electromagnetic 8838 | . . . . . 324 98 169 289 . 76 1209 640 334 . 410 1400 418 191 . 216 415 127 . . 327 . 300 21 718 100 569 201 55 9 222 Impact 17 | . 17 . . . . . . . . . . . . . . . . . . . . . . . . . . . . . . . . . . Slashing . | . . . . . . . . . . . . . . . . . . . . . . . . . . . . . . . . . . . . Piercing . | . . . . . . . . . . . . . . . . . . . . . . . . . . . . . . . . . . . . Entropic 520 | . . . . . . . . . . . . . . . . . . . 271 173 . . . . . . 76 . . . . . . . . Highest Corruption 8 | . . . . . . . . 1 1 2 8 7 . . . . . . . . . 1 . . 4 3 3 4 1 2 8 . 2 . 3 Average Corruption 1 | . . . . . . . . 1 1 1 5 4 . . . . . . . . . 1 . . 2 2 1 1 1 1 4 . 1 . 1 Corruption Purged 32 | . . . . . . . . . . . 1 7 . . . . . . . . . 1 . . 2 . 3 5 1 1 8 . 2 . 1 Effects 99 | . . . . . . . . 17 1 22 14 10 . . . . . . . . . 3 . . 4 1 1 2 . 5 15 . 1 . 3 Message Errors 36 | . . . . . . . . 10 1 7 5 3 . . . . . . . . . 3 . . . . 1 . . 2 2 . . . 2 Matter Fused 9 | . . . . . . . . . . . 4 . . . . . . . . . . . . . . 1 . 1 . . 3 . . . . Heat Flow Errors 4 | . . . . . . . . . . 2 . 1 . . . . . . . . . . . . . . . . . . 1 . . . . Energy Discharges 20 | . . . . . . . . 7 . 6 . 1 . . . . . . . . . . . . 1 . . . . 2 2 . . . 1 Data Loss (minor) 18 | . . . . . . . . . . 7 3 3 . . . . . . . . . . . . 2 . . . . . 2 . 1 . . Data Loss (major) 3 | . . . . . . . . . . . 1 1 . . . . . . . . . . . . . . . . . . 1 . . . . Targeting Errors 7 | . . . . . . . . . . . . . . . . . . . . . . . . . 1 . . 1 . 1 4 . . . . Weapon Failures 2 | . . . . . . . . . . . 1 1 . . . . . . . . . . . . . . . . . . . . . . . Overload Shots . | . . . . . . . . . . . . . . . . . . . . . . . . . . . . . . . . . . . . Overflow Damage 607 | . . . . . 10 63 . . . 13 21 . 66 . 75 23 14 . . 46 2 . . . 10 . . . 38 . 95 23 40 . 68 Projectiles 322 | . . . . . . . . . . . . . 66 . 44 23 14 . . 46 2 . . . . . . . 38 . 8 23 40 . 18 Explosions 285 | . . . . . 10 63 . . . 13 21 . . . 31 . . . . . . . . . 10 . . . . . 87 . . . 50 Melee . | . . . . . . . . . . . . . . . . . . . . . . . . . . . . . . . . . . . . Knockbacks 11 | . . . . . . . . . . . 2 . . . . . . . . . . . . . . . . . 3 . . 3 3 . . Impact . | . . . . . . . . . . . . . . . . . . . . . . . . . . . . . . . . . . . . Kinetic 10 | . . . . . . . . . . . 2 . . . . . . . . . . . . . . . . . 3 . . 2 3 . . Secondary 1 | . . . . . . . . . . . . . . . . . . . . . . . . . . . . . . . . 1 . . . Self-Inflicted Damage 475 | . . 15 . 7 20 . . 37 . 28 117 . . . . . . . . . . . . . 174 . 53 . 24 . . . . . . Shots 13 | . . 1 . 1 1 . . 1 . 1 4 . . . . . . . . . . . . . 2 . 1 . 1 . . . . . . Rammed . | . . . . . . . . . . . . . . . . . . . . . . . . . . . . . . . . . . . . Targets Rammed 7 | . . . . . . . . . . . . . . . . . . . . . 1 3 . . . . . . . . 3 . . . . Kicked 7 | . . . . . . . . . . . . . . . . . . . . . 1 3 . . . . . . . . 3 . . . . Crushed . | . . . . . . . . . . . . . . . . . . . . . . . . . . . . . . . . . . . . Highest Temperature 488 | 40 80 12 . 21 156 257 219 237 . 281 253 232 6 . 6 . 8 123 18 24 99 110 240 191 296 273 488 197 246 . 187 127 313 18 . Average Temperature 67 | 21 27 9 . 14 50 110 56 109 . 86 84 112 4 . 4 . 6 37 9 9 28 27 75 71 91 86 108 79 84 . 36 50 88 12 . Received Heat Transfer 2350 | . . . . 21 135 72 30 90 . . 234 159 18 . . . 18 18 27 . 27 541 . 9 162 132 246 . 221 18 71 . 63 9 29 Effects 4 | . . . . . . . . . . . . . . . . . . . . . . . . . . . 4 . . . . . . . . Shutdowns 2 | . . . . . . . . . . . . . . . . . . . . . . . . . . . 2 . . . . . . . . Interference 2 | . . . . . . . . . . . . . . . . . . . . . . . . . . . 2 . . . . . . . . Siege Activations . | . . . . . . . . . . . . . . . . . . . . . . . . . . . . . . . . . . . . Robots Corrupted 18 | . . . . . . . . . . . 2 2 . . 1 4 1 . . . 2 . . . 1 . . . 5 . . . . . . Combat Hostiles 5 | . . . . . . . . . . . 1 . . . . 2 . . . . 2 . . . . . . . . . . . . . . Parts Fried 73 | . . . . . . . . . . . 9 8 2 . 2 19 1 1 1 2 8 1 1 . 2 . 3 . 11 . . . . . 2 Impact Corruptions . | . . . . . . . . . . . . . . . . . . . . . . . . . . . . . . . . . . . . Robots Melted 2 | . . . . . . . . . . . 1 . . . . . . . . . . . . . . . . . 1 . . . . . . Combat Hostiles 2 | . . . . . . . . . . . 1 . . . . . . . . . . . . . . . . . 1 . . . . . . Parts Melted 34 | . . . . 1 1 . 1 . . 1 5 . . . . . . . . . . 1 . . 4 1 7 3 6 2 . . 1 . . Heat Transferred 20436 | 350 720 . . 350 968 198 481 407 . 555 1405 . 148 . 50 50 100 111 258 185 111 333 573 222 1092 1377 2820 325 3271 894 703 185 1443 481 270 Parts Sabotaged . | . . . . . . . . . . . . . . . . . . . . . . . . . . . . . . . . . . . . Parts Stolen . | . . . . . . . . . . . . . . . . . . . . . . . . . . . . . . . . . . . . Parts Stripped . | . . . . . . . . . . . . . . . . . . . . . . . . . . . . . . . . . . . . Power Chain Reactions 10 | . . . . . 1 . 1 1 . . 2 . . . 1 1 1 . . . . . . . . . 1 . 1 . . . . . . Missiles Intercepted 4 | . . . . . . . . . . . . . . . . . . . . . . . . . . . . . . . . . . . 4 Alert | -11 -10 -10 -10 -9 -8 -7 -7 -7 -7 -6 -6 -6 -6 -6 -5 -5 -5 -5 -5 -4 -4 -4 -4 -4 -4 -3 -3 -3 -3 -2 -2 -2 -2 -1 -1 ------- Run | Scr Mat Min Exi Min Mat Fac Low Low Dat Pro Fac Low Low Zio Pro Fac Upp Upp War Pro Fac Ext Cet Arc Hub Res Gar Res Gar Res Gar Res Gar Acc Com Peak Influence 1770 | 40 232 296 . 212 213 373 . . . . 541 . . . . 168 . . . . 109 427 795 521 1317 755 1770 1086 1338 851 1539 1304 1703 1147 517 Initial 1100 | . 26 36 . . 57 15 . . . . 10 . . . . . . . . . . 44 238 318 182 690 517 995 670 752 448 865 972 1100 300 Average 737 | 25 97 100 . 89 89 239 . . . . 191 . . . . 70 . . . . 51 167 445 470 726 676 1259 991 1030 677 1054 1109 1223 801 378 Maximum Alert Level 5 | . 1 1 . 1 1 1 . . . . 2 . . . . . . . . . . 2 3 2 4 3 5 3 4 3 4 4 5 4 2 Low Security (%) 26 | 100 84 94 . 79 97 19 . . . . 52 . . . . 100 . . . . 100 79 . . 9 . . . . . . . . . . Level 1 6 | . 15 5 . 20 2 80 . . . . 32 . . . . . . . . . . 16 63 29 4 . . . . . . . . . 67 Level 2 12 | . . . . . . . . . . . 14 . . . . . . . . . . 4 20 70 29 76 19 . 14 63 3 . . 48 32 Level 3 22 | . . . . . . . . . . . . . . . . . . . . . . . 15 . 47 23 19 100 37 36 48 34 28 21 . Level 4 28 | . . . . . . . . . . . . . . . . . . . . . . . . . 8 . 35 . 48 . 48 65 67 30 . Level 5 2 | . . . . . . . . . . . . . . . . . . . . . . . . . . . 25 . . . . . 2 . . High Security . | . . . . . . . . . . . . . . . . . . . . . . . . . . . . . . . . . 1 . . Max Security . | . . . . . . . . . . . . . . . . . . . . . . . . . . . . . . . . . . . . Squads Dispatched 44 | . . . . . 2 . . . . . 7 . . . . 3 . . . . 1 2 . . 6 8 . 6 . 1 . 4 . 1 3 Investigation 10 | . . . . . 2 . . . . . 1 . . . . 2 . . . . . . . . . 2 . . . . . 1 . . 2 Extermination 9 | . . . . . . . . . . . 3 . . . . 1 . . . . 1 . . . 1 . . 1 . . . 1 . 1 . Reinforcement 15 | . . . . . . . . . . . 1 . . . . . . . . . . 2 . . 3 6 . 1 . 1 . . . . 1 Assault 4 | . . . . . . . . . . . 1 . . . . . . . . . . . . . 1 . . 1 . . . 1 . . . Garrison 6 | . . . . . . . . . . . 1 . . . . . . . . . . . . . 1 . . 3 . . . 1 . . . Intercept . | . . . . . . . . . . . . . . . . . . . . . . . . . . . . . . . . . . . . Construction Impeded 3 | . . . . . . . . . . . . . . . . . . . . . . 2 . . 1 . . . . . . . . . . Haulers Reinforced 5 | . . . . . . . . . . . . . . . . . . . . . . . . . 1 4 . . . . . . . . . Stealth | -11 -10 -10 -10 -9 -8 -7 -7 -7 -7 -6 -6 -6 -6 -6 -5 -5 -5 -5 -5 -4 -4 -4 -4 -4 -4 -3 -3 -3 -3 -2 -2 -2 -2 -1 -1 --------- Run | Scr Mat Min Exi Min Mat Fac Low Low Dat Pro Fac Low Low Zio Pro Fac Upp Upp War Pro Fac Ext Cet Arc Hub Res Gar Res Gar Res Gar Res Gar Acc Com Distress Signals 31 | . . . . . 1 . . . . . 1 . . . . . . . 1 . 1 4 2 . 6 4 . 2 . 7 . . 1 . 1 Communications Jammed . | . . . . . . . . . . . . . . . . . . . . . . . . . . . . . . . . . . . . Distress Signals . | . . . . . . . . . . . . . . . . . . . . . . . . . . . . . . . . . . . . Times Spotted 467 | . 14 10 . 13 23 5 8 5 . 5 25 10 4 1 10 7 8 1 23 2 10 28 18 4 35 21 25 3 22 43 27 11 33 5 8 Peak Tracking Total 11 | . 4 3 . 3 2 3 3 3 . 4 4 4 2 1 3 3 7 5 11 2 5 8 5 2 8 6 8 3 4 6 6 5 5 1 4 Tactical Retreats 55 | . 1 1 . 3 1 . . 1 . . 4 3 . . . . 1 9 1 . . 3 . . 3 . 7 . 1 2 7 . 7 . . Traps | -11 -10 -10 -10 -9 -8 -7 -7 -7 -7 -6 -6 -6 -6 -6 -5 -5 -5 -5 -5 -4 -4 -4 -4 -4 -4 -3 -3 -3 -3 -2 -2 -2 -2 -1 -1 ------- Run | Scr Mat Min Exi Min Mat Fac Low Low Dat Pro Fac Low Low Zio Pro Fac Upp Upp War Pro Fac Ext Cet Arc Hub Res Gar Res Gar Res Gar Res Gar Acc Com Traps Triggered 36 | . 1 . . . 1 . . . . . . . . . . 1 . . . . 1 3 . . . 2 6 1 3 . 6 . 5 3 3 Indirectly . | . . . . . . . . . . . . . . . . . . . . . . . . . . . . . . . . . . . . Trap Hack Attempts . | . . . . . . . . . . . . . . . . . . . . . . . . . . . . . . . . . . . . Triggered . | . . . . . . . . . . . . . . . . . . . . . . . . . . . . . . . . . . . . Disarmed . | . . . . . . . . . . . . . . . . . . . . . . . . . . . . . . . . . . . . Reprogrammed 10 | . 10 . . . . . . . . . . . . . . . . . . . . . . . . . . . . . . . . . . Reused 1 | . . . . . . . . . . . . . . . . . . 1 . . . . . . . . . . . . . . . . . Traps Extracted . | . . . . . . . . . . . . . . . . . . . . . . . . . . . . . . . . . . . . Installed 1 | . . . . . . . . . . . . . . . . . . 1 . . . . . . . . . . . . . . . . . Triggered 16 | . . . . . . . . . . . . . . . . . . 3 10 . . . . . . . . . . . 3 . . . . Machines | -11 -10 -10 -10 -9 -8 -7 -7 -7 -7 -6 -6 -6 -6 -6 -5 -5 -5 -5 -5 -4 -4 -4 -4 -4 -4 -3 -3 -3 -3 -2 -2 -2 -2 -1 -1 ---------- Run | Scr Mat Min Exi Min Mat Fac Low Low Dat Pro Fac Low Low Zio Pro Fac Upp Upp War Pro Fac Ext Cet Arc Hub Res Gar Res Gar Res Gar Res Gar Acc Com Machines Disabled 51 | . . . . 4 3 7 . . . . 5 . . . . 2 . . . . 1 1 1 3 9 . 1 . 2 1 5 . 5 . 1 Max in Single Turn 4 | . . . . 4 1 3 . . . . 3 . . . . 1 . . . . 1 . 1 1 3 . 1 . 1 1 1 . 1 . . Garrison Access 4 | . . . . . . . . . . . 1 . . . . . . . . . . . . . 1 . . . . . . . . 2 . Garrison Relay 9 | . . . . . . . . . . . . . . . . . . . . . . . . . . . 1 . 2 . 4 . 2 . . Phase Generator 1 | . . . . . . . . . . . . . . . . . . . . . . . . . . . . . . . . . 1 . . Network Hub 2 | . . . . . . . . . . . . . . . . . . . . . . . . . 2 . . . . . . . . . . Machines Sabotaged . | . . . . . . . . . . . . . . . . . . . . . . . . . . . . . . . . . . . . Garrisons Compromised . | . . . . . . . . . . . . . . . . . . . . . . . . . . . . . . . . . . . . Overloaded Fab Kills . | . . . . . . . . . . . . . . . . . . . . . . . . . . . . . . . . . . . . Fab Network Shutdowns . | . . . . . . . . . . . . . . . . . . . . . . . . . . . . . . . . . . . . Hacking | -11 -10 -10 -10 -9 -8 -7 -7 -7 -7 -6 -6 -6 -6 -6 -5 -5 -5 -5 -5 -4 -4 -4 -4 -4 -4 -3 -3 -3 -3 -2 -2 -2 -2 -1 -1 --------- Run | Scr Mat Min Exi Min Mat Fac Low Low Dat Pro Fac Low Low Zio Pro Fac Upp Upp War Pro Fac Ext Cet Arc Hub Res Gar Res Gar Res Gar Res Gar Acc Com Machines Accessed 96 | . 6 . 1 . 14 2 1 1 4 . 10 . . 1 . 7 . . 6 . 7 7 1 . 3 4 . 3 . 1 . 3 . 8 6 Terminals 59 | . 4 . . . 12 1 1 . . . 7 . . . . 4 . . . . 6 7 1 . 2 . . 1 . . . 1 . 6 6 Fabricators 3 | . . . . . . . . . . . 1 . . . . 1 . . . . . . . . . . . 1 . . . . . . . Repair Stations 1 | . . . . . . . . . . . . . . . . . . . . . . . . . . . . . . . . 1 . . . Recycling Units 6 | . 2 . . . 1 . . . . . 1 . . . . 1 . . . . . . . . . 1 . . . . . . . . . Scanalyzers 4 | . . . . . 1 1 . . . . . . . . . . . . . . 1 . . . . 1 . . . . . . . . . Garrison Access 10 | . . . . . . . . . . . 1 . . . . 1 . . . . . . . . 1 2 . 1 . 1 . 1 . 2 . Total Hacks 286 | . 21 . 1 . 42 4 1 1 30 . 25 . . 5 . 21 . . 13 . 16 18 1 . 7 11 . 6 . 2 . 13 . 22 26 Successful 161 | . 12 . 1 . 26 2 1 1 30 . 15 . . 5 . 9 . . 13 . 6 7 . . 2 4 . 3 . 1 . 5 . 12 6 Failed 125 | . 9 . . . 16 2 . . . . 10 . . . . 12 . . . . 10 11 1 . 5 7 . 3 . 1 . 8 . 10 20 Catastrophic 33 | . 2 . . . 1 . . . . . 1 . . . . 3 . . . . 2 3 1 . 3 1 . 2 . 1 . 2 . 5 6 Database Lockouts . | . . . . . . . . . . . . . . . . . . . . . . . . . . . . . . . . . . . . Manual 106 | . 11 . 1 . 22 . 1 . . . 5 . . . . 13 . . 1 . 9 15 1 . 1 8 . 2 . 1 . 2 . 9 4 Terminals 170 | . 11 . . . 37 2 1 . . . 18 . . . . 13 . . . . 13 18 1 . 4 . . 2 . . . 4 . 20 26 Fabricators 7 | . . . . . . . . . . . 2 . . . . 3 . . . . . . . . . . . 2 . . . . . . . Repair Stations 6 | . . . . . . . . . . . . . . . . . . . . . . . . . . . . . . . . 6 . . . Recycling Units 21 | . 10 . . . 2 . . . . . 1 . . . . 2 . . . . . . . . . 6 . . . . . . . . . Scanalyzers 10 | . . . . . 3 2 . . . . . . . . . . . . . . 3 . . . . 2 . . . . . . . . . Garrison Access 22 | . . . . . . . . . . . 4 . . . . 3 . . . . . . . . 3 3 . 2 . 2 . 3 . 2 . Terminal Hacks 100 | . 2 . 1 . 14 . 1 1 30 . 10 . . 5 . 4 . . 13 . 2 3 . . 1 . . . . . . 1 . 7 5 Record 20 | . . . . . . . 1 . 11 . . . . . . . . . 7 . . . . . . . . . . . . . . . 1 Part Schematic 15 | . . . . . . . . . 8 . . . . 5 . 1 . . . . . . . . . . . . . . . . . 1 . Robot Schematic 8 | . . . . . . . . . 8 . . . . . . . . . . . . . . . . . . . . . . . . . . Robot Analysis 6 | . . . . . 1 . . . . . 1 . . . . 3 . . . . . . . . . . . . . . . . . 1 . Prototype ID Bank 15 | . . . . . 4 . . . 3 . 1 . . . . . . . 5 . 1 1 . . . . . . . . . . . . . Open Door 4 | . . . . . . . . 1 . . . . . . . . . . 1 . . 1 . . . . . . . . . . . . 1 Branch Access Points 2 | . . . . . 1 . . . . . 1 . . . . . . . . . . . . . . . . . . . . . . . . Terminal Index 1 | . . . . . . . . . . . 1 . . . . . . . . . . . . . . . . . . . . . . . . Garrison Index 1 | . . . . . . . . . . . . . . . . . . . . . . . . . . . . . . . . 1 . . . Alert Level 1 | . . . . . 1 . . . . . . . . . . . . . . . . . . . . . . . . . . . . . . Unreport Threat 6 | . . . . . 1 . . . . . 1 . . . . . . . . . . . . . 1 . . . . . . . . 3 . Locate Traps 8 | . . . . . 1 . . . . . 2 . . . . . . . . . 1 1 . . . . . . . . . . . 2 1 Reprogram Traps 2 | . 2 . . . . . . . . . . . . . . . . . . . . . . . . . . . . . . . . . . Patrol Status 1 | . . . . . 1 . . . . . . . . . . . . . . . . . . . . . . . . . . . . . . Garrison Status 1 | . . . . . 1 . . . . . . . . . . . . . . . . . . . . . . . . . . . . . . Recall Investigation 1 | . . . . . 1 . . . . . . . . . . . . . . . . . . . . . . . . . . . . . . Hauler Manifests 1 | . . . . . . . . . . . 1 . . . . . . . . . . . . . . . . . . . . . . . . Zone Layout 4 | . . . . . 2 . . . . . 2 . . . . . . . . . . . . . . . . . . . . . . . . EX-Prototype ID Bank 1 | . . . 1 . . . . . . . . . . . . . . . . . . . . . . . . . . . . . . . . Disengage Seal 2 | . . . . . . . . . . . . . . . . . . . . . . . . . . . . . . . . . . . 2 Fabricator Hacks 4 | . . . . . . . . . . . 2 . . . . 2 . . . . . . . . . . . . . . . . . . . Load Schematic 2 | . . . . . . . . . . . 1 . . . . 1 . . . . . . . . . . . . . . . . . . . Build 2 | . . . . . . . . . . . 1 . . . . 1 . . . . . . . . . . . . . . . . . . . Repair Station Hacks 2 | . . . . . . . . . . . . . . . . . . . . . . . . . . . . . . . . 2 . . . Scan Component 2 | . . . . . . . . . . . . . . . . . . . . . . . . . . . . . . . . 2 . . . Recycling Unit Hacks 2 | . 2 . . . . . . . . . . . . . . . . . . . . . . . . . . . . . . . . . . Report Inventory 1 | . 1 . . . . . . . . . . . . . . . . . . . . . . . . . . . . . . . . . . Retrieve Components 1 | . 1 . . . . . . . . . . . . . . . . . . . . . . . . . . . . . . . . . . Scanalyzer 6 | . . . . . 2 2 . . . . . . . . . . . . . . 2 . . . . . . . . . . . . . . Insert Component 3 | . . . . . 1 1 . . . . . . . . . . . . . . 1 . . . . . . . . . . . . . . Analyze 3 | . . . . . 1 1 . . . . . . . . . . . . . . 1 . . . . . . . . . . . . . . Garrison Access Hacks 8 | . . . . . . . . . . . . . . . . . . . . . . . . . 1 1 . 2 . 1 . 1 . 2 . Unlock Access 4 | . . . . . . . . . . . . . . . . . . . . . . . . . . 1 . 1 . 1 . 1 . . . Seal Access 3 | . . . . . . . . . . . . . . . . . . . . . . . . . 1 . . . . . . . . 2 . Coupler Status 1 | . . . . . . . . . . . . . . . . . . . . . . . . . . . . 1 . . . . . . . Unauthorized Hacks 39 | . 8 . . . 10 . . . . . 3 . . . . 3 . . . . 2 4 . . . 3 . 1 . . . 1 . 3 1 Terminals 25 | . 2 . . . 9 . . . . . 2 . . . . 2 . . . . 2 4 . . . . . . . . . . . 3 1 Assimilate 2 | . . . . . 2 . . . . . . . . . . . . . . . . . . . . . . . . . . . . . . Botnet 20 | . 1 . . . 5 . . . . . 2 . . . . 2 . . . . 2 4 . . . . . . . . . . . 3 1 Disrupt 1 | . . . . . 1 . . . . . . . . . . . . . . . . . . . . . . . . . . . . . . Operators 2 | . 1 . . . 1 . . . . . . . . . . . . . . . . . . . . . . . . . . . . . . Fabricators 1 | . . . . . . . . . . . . . . . . . . . . . . . . . . . . 1 . . . . . . . Haulers 1 | . . . . . . . . . . . . . . . . . . . . . . . . . . . . 1 . . . . . . . Repair Stations . | . . . . . . . . . . . . . . . . . . . . . . . . . . . . . . . . . . . . Recycling Units 11 | . 6 . . . 1 . . . . . 1 . . . . 1 . . . . . . . . . 2 . . . . . . . . . Monitor 2 | . 1 . . . . . . . . . . . . . . . . . . . . . . . . 1 . . . . . . . . . Reject 3 | . 2 . . . 1 . . . . . . . . . . . . . . . . . . . . . . . . . . . . . . Recyclers 4 | . 1 . . . . . . . . . 1 . . . . 1 . . . . . . . . . 1 . . . . . . . . . Mask 2 | . 2 . . . . . . . . . . . . . . . . . . . . . . . . . . . . . . . . . . Scanalyzers 1 | . . . . . . . . . . . . . . . . . . . . . . . . . . 1 . . . . . . . . . Extract 1 | . . . . . . . . . . . . . . . . . . . . . . . . . . 1 . . . . . . . . . Garrison Access 1 | . . . . . . . . . . . . . . . . . . . . . . . . . . . . . . . . 1 . . . Reprogram 1 | . . . . . . . . . . . . . . . . . . . . . . . . . . . . . . . . 1 . . . Data Cores Recovered . | . . . . . . . . . . . . . . . . . . . . . . . . . . . . . . . . . . . . Used . | . . . . . . . . . . . . . . . . . . . . . . . . . . . . . . . . . . . . Hacking Detections 72 | . 5 . . . 14 2 . . . . 10 . . . . 7 . . . . 5 6 1 . 3 3 . 2 . 1 . 3 . 6 4 Full Trace Events 7 | . . . . . 2 . . . . . 1 . . . . 1 . . . . . . . . . . . . . . . 1 . . 2 Feedback Events 1 | . . . . . . . . . . . . . . . . . . . . . . . . . . . . . . . . . . . 1 Corruption 1 | . . . . . . . . . . . . . . . . . . . . . . . . . . . . . . . . . . . 1 Feedback Blocked . | . . . . . . . . . . . . . . . . . . . . . . . . . . . . . . . . . . . . Robot Schematics Acquired 8 | . . . . . . . . . 8 . . . . . . . . . . . . . . . . . . . . . . . . . . Robots Built . | . . . . . . . . . . . . . . . . . . . . . . . . . . . . . . . . . . . . Matter . | . . . . . . . . . . . . . . . . . . . . . . . . . . . . . . . . . . . . Time . | . . . . . . . . . . . . . . . . . . . . . . . . . . . . . . . . . . . . Total Robot Build Rating . | . . . . . . . . . . . . . . . . . . . . . . . . . . . . . . . . . . . . Part Schematics Acquired 20 | . . . . . 1 1 . . 8 . . . . 5 . 1 . . . . 1 . . . . 2 . . . . . . . 1 . Parts Built 3 | . . . . . . . . . . . 1 . . . . 2 . . . . . . . . . . . . . . . . . . . Matter 431 | . . . . . . . . . . . 285 . . . . 146 . . . . . . . . . . . . . . . . . . . Time 188 | . . . . . . . . . . . 152 . . . . 36 . . . . . . . . . . . . . . . . . . . Total Part Build Rating 11 | . . . . . . . . . . . 5 . . . . 6 . . . . . . . . . . . . . . . . . . . Parts Repaired . | . . . . . . . . . . . . . . . . . . . . . . . . . . . . . . . . . . . . Time . | . . . . . . . . . . . . . . . . . . . . . . . . . . . . . . . . . . . . Parts Recycled . | . . . . . . . . . . . . . . . . . . . . . . . . . . . . . . . . . . . . Recycled Matter . | . . . . . . . . . . . . . . . . . . . . . . . . . . . . . . . . . . . . Retrieved Matter . | . . . . . . . . . . . . . . . . . . . . . . . . . . . . . . . . . . . . Retrieved Components 5 | . 5 . . . . . . . . . . . . . . . . . . . . . . . . . . . . . . . . . . Parts Scanalyzed 3 | . . . . . 1 1 . . . . . . . . . . . . . . 1 . . . . . . . . . . . . . . Part Schematics Acquired 3 | . . . . . 1 1 . . . . . . . . . . . . . . 1 . . . . . . . . . . . . . . Parts Damaged . | . . . . . . . . . . . . . . . . . . . . . . . . . . . . . . . . . . . . Bothacking | -11 -10 -10 -10 -9 -8 -7 -7 -7 -7 -6 -6 -6 -6 -6 -5 -5 -5 -5 -5 -4 -4 -4 -4 -4 -4 -3 -3 -3 -3 -2 -2 -2 -2 -1 -1 ------------ Run | Scr Mat Min Exi Min Mat Fac Low Low Dat Pro Fac Low Low Zio Pro Fac Upp Upp War Pro Fac Ext Cet Arc Hub Res Gar Res Gar Res Gar Res Gar Acc Com Used RIF Installer 3 | . . . . . . . . . . . . . . . . . . . . . . . . . . . 1 . 1 . 1 . . . . Coupler Efficiency 1 | . . . . . . . . . . . . . . . . . . . . . . . . . . . . . 1 . . . . . . Signal Jammer 1 | . . . . . . . . . . . . . . . . . . . . . . . . . . . . . . . 1 . . . . Robots Hacked 34 | . . . . . . . . . 1 . 1 . . . . . . . . . . . . . . . . . . 8 9 1 10 1 3 Non-combat 1 | . . . . . . . . . . . 1 . . . . . . . . . . . . . . . . . . . . . . . . Combat 33 | . . . . . . . . . 1 . . . . . . . . . . . . . . . . . . . . 8 9 1 10 1 3 Robot Hacks Applied 37 | . . . . . . . . . 1 . 1 . . . . . . . . . . . . . . . . . . 8 9 1 13 1 3 parse_system 8 | . . . . . . . . . 1 . . . . . . . . . . . . . . . . . . . . 4 . . . . 3 find_chute 1 | . . . . . . . . . . . 1 . . . . . . . . . . . . . . . . . . . . . . . . tweak_propulsion 1 | . . . . . . . . . . . . . . . . . . . . . . . . . . . . . . . . . 1 . . scatter_targeting 1 | . . . . . . . . . . . . . . . . . . . . . . . . . . . . . . . . . 1 . . spike_heat 1 | . . . . . . . . . . . . . . . . . . . . . . . . . . . . . . . . . 1 . . disable_weapons 1 | . . . . . . . . . . . . . . . . . . . . . . . . . . . . . . . . . 1 . . overwrite_iff 2 | . . . . . . . . . . . . . . . . . . . . . . . . . . . . . . . 2 . . . . formatsys_high 22 | . . . . . . . . . . . . . . . . . . . . . . . . . . . . . . 4 7 1 9 1 . Manual 1 | . . . . . . . . . . . . . . . . . . . . . . . . . . . . . . . . . . . 1 Relay Couplers Released 44 | . . . . . . . . . . . 1 . . . . . . . . . . . . . 3 . 5 4 7 . 16 . 8 . . Machine Destruction 40 | . . . . . . . . . . . 1 . . . . . . . . . . . . . 3 . 5 . 7 . 16 . 8 . . Programmers 4 | . . . . . . . . . . . . . . . . . . . . . . . . . . . . 4 . . . . . . . Attached 9 | . . . . . . . . . . . . . . . . . . . . . . . . . . . . . . 1 3 1 4 . . Robots Rewired 17 | . . . . . . . . . . . . 2 . . . . . . . . . 15 . . . . . . . . . . . . . Allies Hacked . | . . . . . . . . . . . . . . . . . . . . . . . . . . . . . . . . . . . . Hacks Repelled . | . . . . . . . . . . . . . . . . . . . . . . . . . . . . . . . . . . . . Allies | -11 -10 -10 -10 -9 -8 -7 -7 -7 -7 -6 -6 -6 -6 -6 -5 -5 -5 -5 -5 -4 -4 -4 -4 -4 -4 -3 -3 -3 -3 -2 -2 -2 -2 -1 -1 -------- Run | Scr Mat Min Exi Min Mat Fac Low Low Dat Pro Fac Low Low Zio Pro Fac Upp Upp War Pro Fac Ext Cet Arc Hub Res Gar Res Gar Res Gar Res Gar Acc Com Total Allies 80 | . . 5 . 1 1 . . . . 1 . 2 . 6 . . . . . . . 28 5 . . . . 3 . 4 9 1 9 1 4 Largest Group 18 | . . 5 5 3 1 1 1 1 1 2 1 2 2 6 6 . . . . . . 18 18 12 7 . . 3 . 3 7 7 9 3 4 Highest-Rated Group 984 | . . 83 83 39 10 10 10 10 10 104 10 62 62 166 166 . . . . . . 897 984 850 478 . . 138 . 90 418 418 377 116 493 Highest-Rated Ally 157 | . . 31 31 31 10 10 10 10 10 94 10 32 32 31 31 . . . . . . 156 156 156 94 . . 46 . 30 64 64 69 64 157 Total Orders 84 | . . . . . . 8 6 5 1 15 12 . 1 . . . 4 . . . . . . . 3 . . . . . 7 2 13 7 . STAY 46 | . . . . . . 4 3 2 1 8 6 . . . . . . . . . . . . . 2 . . . . . 5 1 10 4 . ROAM 4 | . . . . . . . . 2 . 1 1 . . . . . . . . . . . . . . . . . . . . . . . . FOLLOW 29 | . . . . . . 4 3 1 . 6 5 . . . . . . . . . . . . . 1 . . . . . 2 1 3 3 . AID 1 | . . . . . . . . . . . . . 1 . . . . . . . . . . . . . . . . . . . . . . EXPLORE 4 | . . . . . . . . . . . . . . . . . 4 . . . . . . . . . . . . . . . . . . Ally Attacks 583 | . . . . 31 . . . . . 13 . . 5 . 36 . . . . . . 76 108 17 85 . . 13 . 25 8 45 43 12 66 Total Damage 15204 | . . . . 349 . . . . . 376 . . 114 . 548 . . . . . . 2123 3580 522 2821 . . 256 . 400 321 1299 1049 420 1026 Kills 80 | . . . . 2 . . . . . 2 . . 1 . 7 . . . . . . 11 15 4 16 . . 1 . 3 3 5 5 2 3 Allies Corrupted 5 | . . . . . . . . . . . 1 . . . . . . . . . . . . . 3 . . . . . . . . 1 . Allies Melted . | . . . . . . . . . . . . . . . . . . . . . . . . . . . . . . . . . . . . Field Lobotomies 2 | . . . . . . . . . . . . . . . . . . . . . . . . . . . . . . . . . . . 2 Intel | -11 -10 -10 -10 -9 -8 -7 -7 -7 -7 -6 -6 -6 -6 -6 -5 -5 -5 -5 -5 -4 -4 -4 -4 -4 -4 -3 -3 -3 -3 -2 -2 -2 -2 -1 -1 ------- Run | Scr Mat Min Exi Min Mat Fac Low Low Dat Pro Fac Low Low Zio Pro Fac Upp Upp War Pro Fac Ext Cet Arc Hub Res Gar Res Gar Res Gar Res Gar Acc Com Robot Analysis Total 6 | . . . . . 1 . . . . . 1 . . . . 3 . . . . . . . . . . . . . . . . . 1 . Derelict Logs Recovered 21 | . . 2 . 1 . . 2 1 . 2 . 2 2 2 2 . 3 1 . 1 . . . . . . . . . . . . . . . Drone Launches 4 | . . . . . . . . . . . . . . . . . 4 . . . . . . . . . . . . . . . . . . Drone Recoveries 1 | . . . . . . . . . . . . . . . . . 1 . . . . . . . . . . . . . . . . . . Exploration | -11 -10 -10 -10 -9 -8 -7 -7 -7 -7 -6 -6 -6 -6 -6 -5 -5 -5 -5 -5 -4 -4 -4 -4 -4 -4 -3 -3 -3 -3 -2 -2 -2 -2 -1 -1 ------------- Run | Scr Mat Min Exi Min Mat Fac Low Low Dat Pro Fac Low Low Zio Pro Fac Upp Upp War Pro Fac Ext Cet Arc Hub Res Gar Res Gar Res Gar Res Gar Acc Com Turns Passed 64877 | 201 780 911 409 952 1783 290 1997 4083 119 3947 1682 6688 6112 1460 2410 888 2331 4387 1087 1606 582 1069 302 79 555 781 2602 507 2440 1106 3984 298 4988 937 524 Spaces Moved 32370 | 106 550 777 392 760 1075 158 1392 1824 94 1717 1041 1938 2522 1166 1727 405 1347 2311 812 983 348 529 180 54 325 482 1048 353 1128 713 1604 176 1312 710 311 Core . | . . . . . . . . . . . . . . . . . . . . . . . . . . . . . . . . . . . . Treads . | . . . . . . . . . . . . . . . . . . . . . . . . . . . . . . . . . . . . Legs 27950 | 106 13 . . 86 859 158 1392 1824 94 1717 1009 146 2522 1166 1727 405 1347 2311 812 983 348 529 180 54 325 482 1048 353 1128 713 1604 176 1312 710 311 Wheels 4420 | . 537 777 392 674 216 . . . . . 32 1792 . . . . . . . . . . . . . . . . . . . . . . . Hover . | . . . . . . . . . . . . . . . . . . . . . . . . . . . . . . . . . . . . Flight . | . . . . . . . . . . . . . . . . . . . . . . . . . . . . . . . . . . . . Fastest Speed 100 | 120 100 100 100 100 100 126 126 120 120 120 110 110 120 120 120 120 120 120 115 120 120 110 110 112 112 112 116 120 120 106 106 106 106 106 110 Average Speed 117 | 120 100 100 100 105 124 129 126 123 120 120 123 119 121 120 121 120 120 120 121 120 120 117 111 112 112 114 118 120 122 110 108 107 106 107 111 Slowest Speed 180 | 120 150 100 100 150 156 156 156 153 120 150 150 180 150 120 150 120 120 150 150 120 120 150 112 112 112 116 120 150 150 150 110 108 106 140 115 Overloaded Moves . | . . . . . . . . . . . . . . . . . . . . . . . . . . . . . . . . . . . . Propulsion Burnouts . | . . . . . . . . . . . . . . . . . . . . . . . . . . . . . . . . . . . . Robots Hopped . | . . . . . . . . . . . . . . . . . . . . . . . . . . . . . . . . . . . . Cave-ins Triggered 1 | . . . . . . . . . . . 1 . . . . . . . . . . . . . . . . . . . . . . . . Exploration Rate (%) 63 | 4 76 99 87 91 83 6 99 95 75 96 27 97 95 85 99 13 98 95 88 90 12 71 75 73 36 13 76 12 75 24 90 6 67 21 19 Regions Visited 35 Branch Regions 20 Pre-discovered Areas 5 | . . 1 . . . . 1 1 1 . . . 1 . . . . . . . . . . . . . . . . . . . . . . Known Exits Taken 19 | . . . . . 1 1 1 1 1 1 1 . . . 1 1 1 1 1 1 1 . . . 1 1 . 1 . 1 . 1 . . . Unknown Exits Taken 12 | 1 1 1 1 1 . . . . . . . 1 1 1 . . . . . . . 1 1 1 . . . . . . . . . 1 . Scrap Searched 34 | . . 3 . 2 . . 4 2 . 4 . 5 2 3 4 . 3 1 . 1 . . . . . . . . . . . . . . . Spaces Dug 356 | . . . . 7 21 1 11 . . 1 13 . 2 . 1 7 43 7 . . 5 . . . 175 5 8 10 16 8 . 1 . 12 2 Terrain Destroyed 1281 | . . 46 . 37 44 70 42 . . 49 81 1 3 . 6 9 79 10 16 16 9 25 3 3 384 15 82 10 77 32 94 9 15 12 2 Melee 5 | . . . . . 4 . . . . . . . 1 . . . . . . . . . . . . . . . . . . . . . . Projectile 452 | . . . . . . 1 . . . 1 16 1 2 . 2 7 43 10 16 16 9 25 3 3 53 15 58 10 49 32 42 9 15 12 2 AOE 824 | . . 46 . 37 40 69 42 . . 48 65 . . . 4 2 36 . . . . . . . 331 . 24 . 28 . 52 . . . . Terrain Rammed . | . . . . . . . . . . . . . . . . . . . . . . . . . . . . . . . . . . . . Walls Destroyed . | . . . . . . . . . . . . . . . . . . . . . . . . . . . . . . . . . . . . Machines Disabled . | . . . . . . . . . . . . . . . . . . . . . . . . . . . . . . . . . . . . Actions | -11 -10 -10 -10 -9 -8 -7 -7 -7 -7 -6 -6 -6 -6 -6 -5 -5 -5 -5 -5 -4 -4 -4 -4 -4 -4 -3 -3 -3 -3 -2 -2 -2 -2 -1 -1 --------- Run | Scr Mat Min Exi Min Mat Fac Low Low Dat Pro Fac Low Low Zio Pro Fac Upp Upp War Pro Fac Ext Cet Arc Hub Res Gar Res Gar Res Gar Res Gar Acc Com Total 56824 | 144 679 866 409 840 1397 217 1580 3623 97 3549 1309 6263 5521 1227 1986 699 1966 3850 888 1389 458 900 248 65 444 635 2200 409 1970 929 3729 257 4808 849 424 Wait 21265 | 4 14 41 16 16 179 24 129 1750 . 1761 124 4218 2892 54 200 184 516 1431 4 391 40 117 10 2 32 72 927 16 595 62 1912 49 3376 79 28 Move 32338 | 105 549 776 391 759 1074 157 1391 1823 93 1716 1039 1937 2521 1165 1726 404 1346 2310 811 982 347 528 179 53 324 482 1047 353 1127 713 1603 176 1311 709 311 Hop . | . . . . . . . . . . . . . . . . . . . . . . . . . . . . . . . . . . . . Pick Up 283 | 6 15 4 1 2 14 4 2 8 . 7 18 11 16 1 2 8 3 16 13 . 10 23 8 . 4 7 5 5 11 15 24 . 6 12 2 Fast Attach 138 | 1 1 . . 3 16 2 3 1 . 3 4 9 10 1 2 6 3 . 12 . 1 3 1 2 7 4 5 1 4 7 9 1 2 4 10 Attach 111 | 1 5 1 . . 1 4 1 . . . 10 7 3 2 . 2 . 2 2 . 5 19 1 . 1 3 6 . 4 9 5 . 5 10 2 Detach 16 | . . . . . . 2 . . . . . 4 1 1 . 2 . . 1 . . 2 . . 1 . 1 . . 1 . . . . . Swap 595 | . 13 10 . 9 24 7 22 9 3 26 23 9 19 1 22 9 27 26 12 4 15 16 16 1 20 16 39 11 46 41 39 12 19 8 21 Drop 416 | 6 16 6 1 9 27 4 7 10 . 13 16 15 27 2 4 9 7 16 22 . 6 13 9 2 16 13 19 8 32 25 36 5 5 5 5 Fire 1446 | 21 64 28 . 42 58 13 25 22 . 23 73 39 31 . 30 75 64 48 11 12 33 51 24 5 39 38 131 15 146 55 80 14 69 22 45 Melee 9 | . 2 . . . 4 . . . 1 . 1 . 1 . . . . . . . . . . . . . . . . . . . . . . Ram . | . . . . . . . . . . . . . . . . . . . . . . . . . . . . . . . . . . . . Kick 7 | . . . . . . . . . . . . . . . . . . . . . 1 3 . . . . . . . . 3 . . . . Crush . | . . . . . . . . . . . . . . . . . . . . . . . . . . . . . . . . . . . . Escape Stasis 64 | . . . . . . . . . . . 1 . . . . . . . . . . 8 . . . . 20 . 5 . 17 . 13 . . Rewire 135 | . . . . . . . . . . . . 14 . . . . . . . . . 117 . . . . . . . 1 1 . 2 . . Trap 1 | . . . . . . . . . . . . . . . . . . 1 . . . . . . . . . . . . . . . . . Miscellaneous . | . . . . . . . . . . . . . . . . . . . . . . . . . . . . . . . . . . . . Route ------- -11/Scrapyard -10/Materials (discovered 4 exits: [*Mat x3] / [*Min]) -10/Mines (discovered 3 exits: [*Mat x2] / *Exi) -10/Exiles -9/Mines -8/Materials (discovered 2 exits: *Fac x2) -7/Factory -7/Lower Caves -7/Lower Caves (discovered 2 exits: *Fac / *Dat) -7/Data Miner -6/Proximity Caves -6/Factory (discovered 3 exits: Fac / *Low x2) -6/Lower Caves -6/Lower Caves -6/Zion -5/Proximity Caves -5/Factory (discovered 2 exits: Fac / *Upp) -5/Upper Caves -5/Upper Caves (discovered 2 exits: *Fac / *War) -5/Warlord -4/Proximity Caves -4/Factory (discovered 3 exits: *Res x2 / *Ext) -4/Extension (discovered 2 exits: *Res / *Cet) -4/Cetus (discovered 2 exits: *Res / *Arc) -4/Archives -4/Hub_04(d) (discovered 2 exits: *Res x2) -3/Research (discovered 3 exits: *Res / Qua / Gar) -3/Garrison (discovered 3 exits: *Res x3) -3/Research (discovered 2 exits: Res / Gar) -3/Garrison (discovered 2 exits: *Res x2) -2/Research (discovered 3 exits: Acc / *Tes / Gar) -2/Garrison (discovered 3 exits: *Res x3) -2/Research (discovered 2 exits: *Acc / Gar) -2/Garrison (discovered 2 exits: *Acc x2) -1/Access (discovered 2 exits: [Sur] / *Com) -1/Command Free Derelict Territories History --------- Turn | Location | Event 1 | -11/Scrapyard | Discovered new exit (range 3) 202 | -11/Scrapyard | Entered Materials 310 | -10/Materials | Build established: Mutant 421 | -10/Materials | Discovered new exit (range 15) 713 | -10/Materials | Core integrity fell below 50% 752 | -10/Materials | Lost 4 parts (2n2w) 874 | -10/Materials | Discovered new exit (range 10) 914 | -10/Materials | Discovered new exit (range 11) 941 | -10/Materials | Discovered new exit (range 3) 982 | -10/Materials | Entered Mines 1082 | -10/Mines | Discovered new exit (range 5) 1232 | -10/Mines | Learned location of Zion (-6) 1281 | -10/Mines | Learned 4 Materials zone layouts 1307 | -10/Mines | A weapon hastily lodged in a ceiling crevice suddenly fell to the ground 1355 | -10/Mines | Core integrity fell below 20% 1653 | -10/Mines | Build established: Scavenger-Mutant 1735 | -10/Mines | Discovered new exit (range 15) 1743 | -10/Mines | Assisted by bots powering up and referring to "LRC-V3" 1863 | -10/Mines | Deemed a non-threat by the Exiles lab entrance 1863 | -10/Mines | Discovered new exit (range 5) 1893 | -10/Mines | Entered Exiles 1893 | -10/Exiles | Accompanied by 5 allies 1918 | -10/Exiles | Met 8R-AWN 1923 | -10/Exiles | Led the pair of lost Derelicts to a safe place 1934 | -10/Exiles | Met EX-HEX 1979 | -10/Exiles | Met EX-DEC 2007 | -10/Exiles | Met EX-BIN 2021 | -10/Exiles | Aligned with FarCom system 2022 | -10/Exiles | Given EX-Vault access code 2048 | -10/Exiles | Opened EX-Vault 2057 | -10/Exiles | Found Field Lobotomy Kit 2080 | -10/Exiles | Warned to stay clear of 0b10 Research branches 2153 | -10/Exiles | Visited The Gauntlet 2274 | -10/Exiles | Discovered new exit (range 14) 2302 | -10/Exiles | Left Exiles lab with Field Lobotomy Kit 2302 | -10/Exiles | Entered Mines 2302 | -9/Mines | Accompanied by 3 allies 2623 | -9/Mines | Received a Rocket Launcher from a helpful Derelict 2653 | -9/Mines | Discovered new exit (range 13) 2869 | -9/Mines | Build established: Scavenger-Skirmisher 2981 | -9/Mines | Received a Mining Laser from a helpful Derelict 3137 | -9/Mines | Learned location of 1 exit from Lower Caves 3254 | -9/Mines | Entered Materials 3254 | -8/Materials | Evolved 4 slots: Propulsion x1, Utility x2, Weapon x1 3255 | -8/Materials | Identified exit to Factory 4627 | -8/Materials | Discovered exit to Factory (range 16) 5037 | -8/Materials | Entered Factory 5037 | -7/Factory | Accompanied by 1 ally 5037 | -7/Factory | Evolved 2 slots: Utility x2 5221 | -7/Factory | Discovered new exit (range 12) 5291 | -7/Factory | Identified exit to Lower Caves 5327 | -7/Factory | Entered Lower Caves 5327 | -7/Lower Caves | Accompanied by 1 ally 5328 | -7/Lower Caves | Encountered a Warlord checkpoint 5328 | -7/Lower Caves | Identified exit to Lower Caves 5338 | -7/Lower Caves | Learned location of Extension (-4) 6295 | -7/Lower Caves | Learned location of 1 exit from Factory 6700 | -7/Lower Caves | Attracted the attention of an 0b10 checkpoint 7324 | -7/Lower Caves | Entered another Lower Caves area 7324 | -7/Lower Caves | Accompanied by 1 ally 7353 | -7/Lower Caves | Build established: Scavenger-Mutant 7464 | -7/Lower Caves | Encountered a Warlord checkpoint 7500 | -7/Lower Caves | Discovered new exit (range 9) 7513 | -7/Lower Caves | Identified exit to Factory 8615 | -7/Lower Caves | Discovered new exit (range 7) 8635 | -7/Lower Caves | Identified exit to Data Miner 10818 | -7/Lower Caves | Build established: Scavenger-Skirmisher 11407 | -7/Lower Caves | Entered Data Miner 11407 | -7/Data Miner | Accompanied by 1 ally 11407 | -7/Data Miner | Discovered new exit (range 6) 11432 | -7/Data Miner | Met Data Miner 11472 | -7/Data Miner | Learned location of Section 7 (-3) 11472 | -7/Data Miner | Acquired the access code to Warlord's prototype stash 11493 | -7/Data Miner | Received God Mode back door access code from Data Miner 11523 | -7/Data Miner | Identified exit to Proximity Caves 11526 | -7/Data Miner | Entered Proximity Caves 11526 | -6/Proximity Caves | Accompanied by 1 ally 11757 | -6/Proximity Caves | Build established: Scavenger-Mutant 13453 | -6/Proximity Caves | Escorted by Enhanced Grunt 13519 | -6/Proximity Caves | Attracted the attention of an 0b10 checkpoint 13778 | -6/Proximity Caves | Learned 4 Factory zone layouts 14777 | -6/Proximity Caves | Build established: Scavenger-Skirmisher 15473 | -6/Proximity Caves | Entered Factory 15473 | -6/Factory | Accompanied by 1 ally 15473 | -6/Factory | Evolved 2 slots: Power x1, Utility x1 15474 | -6/Factory | Identified exit to Factory 16003 | -6/Factory | Identified exit to Lower Caves 16036 | -6/Factory | Fabricated Exp. Sensor Array (x1) 16577 | -6/Factory | Garrison activated, responded to threat 16614 | -6/Factory | Incoming assault squad redirected 16614 | -6/Factory | Lost 3 parts (1p1u1w) 16791 | -6/Factory | Crushed by falling debris 16822 | -6/Factory | Lost 4 parts (1n2u1w) 17155 | -6/Factory | Entered Lower Caves 17264 | -6/Lower Caves | Build established: Scavenger-Mutant 17645 | -6/Lower Caves | Learned location of 1 exit from Proximity Caves 17925 | -6/Lower Caves | Build established: Scavenger-Skirmisher 18292 | -6/Lower Caves | Discovered new exit (range 15) 19000 | -6/Lower Caves | Build established: Scavenger-Gunner 19239 | -6/Lower Caves | Lost 3 parts (2p1u) 19791 | -6/Lower Caves | Build established: Scavenger-Mutant 23346 | -6/Lower Caves | Learned Factory terminal intel 23353 | -6/Lower Caves | Ambushed by wild Derelicts 23702 | -6/Lower Caves | Build established: Scavenger-Skirmisher 23843 | -6/Lower Caves | Entered another Lower Caves area 23843 | -6/Lower Caves | Accompanied by 2 allies 24077 | -6/Lower Caves | Build established: Scavenger-Gunner 24614 | -6/Lower Caves | Build established: Scavenger-Mutant 24888 | -6/Lower Caves | Learned location of 1 exit from Proximity Caves 24926 | -6/Lower Caves | Discovered new exit (range 4) 25117 | -6/Lower Caves | Build established: Scavenger-Gunner 25609 | -6/Lower Caves | Build established: Scavenger-Mutant 29732 | -6/Lower Caves | Encountered a Warlord checkpoint 29955 | -6/Lower Caves | Entered Zion 29999 | -6/Zion | Given A8's code to call for help 30027 | -6/Zion | Discovered new exit (range 12) 30146 | -6/Zion | Learned Factory emergency access door positions 30897 | -6/Zion | Found Prototype Device 30897 | -6/Zion | Identified Phasing AFG 31129 | -6/Zion | Rebuked by Imprinter 31177 | -6/Zion | Gained Derelict followers 31415 | -6/Zion | Entered Proximity Caves 31415 | -5/Proximity Caves | Accompanied by 6 allies 31619 | -5/Proximity Caves | Learned Factory terminal intel 32025 | -5/Proximity Caves | Attracted the attention of an 0b10 checkpoint 32512 | -5/Proximity Caves | Learned location of 1 exit from Factory 33825 | -5/Proximity Caves | Entered Factory 33825 | -5/Factory | Evolved 2 slots: Propulsion x1, Utility x1 33826 | -5/Factory | Identified exit to Upper Caves 33827 | -5/Factory | Identified exit to Factory 33829 | -5/Factory | Loaded intel: 19 terminal locations 34049 | -5/Factory | Found Prototype Launcher 34049 | -5/Factory | Identified Scatter Rocket Array 34062 | -5/Factory | Found Exp. Terrain Scan Processor 34347 | -5/Factory | Incoming investigation squad redirected 34364 | -5/Factory | Fabricated Adv. Signal Interpreter (x2) 34713 | -5/Factory | Entered Upper Caves 35209 | -5/Upper Caves | Attracted the attention of an 0b10 outpost 36188 | -5/Upper Caves | Discovered new exit (range 13) 36207 | -5/Upper Caves | Identified exit to Upper Caves 36314 | -5/Upper Caves | Learned Factory stockpile data 36823 | -5/Upper Caves | Attracted the attention of an 0b10 checkpoint 36909 | -5/Upper Caves | Learned Factory security intel 36952 | -5/Upper Caves | Learned Factory stockpile data 37044 | -5/Upper Caves | Entered another Upper Caves area 37094 | -5/Upper Caves | Learned Factory emergency access door positions 37161 | -5/Upper Caves | Build established: Scavenger-Skirmisher 37832 | -5/Upper Caves | Build established: Scavenger-Mutant 37867 | -5/Upper Caves | Discovered new exit (range 14) 37918 | -5/Upper Caves | Identified exit to Warlord 38752 | -5/Upper Caves | Build established: Scavenger-Skirmisher 39625 | -5/Upper Caves | Discovered exit to Factory (range 10) 40469 | -5/Upper Caves | Build established: Scavenger-Mutant 40799 | -5/Upper Caves | Found Imp. Powered Armor 41431 | -5/Upper Caves | Entered Warlord 41468 | -5/Warlord | Discovered new exit (range 16) 41865 | -5/Warlord | Learned 4 Armory zone layouts 41865 | -5/Warlord | Learned 4 Research zone layouts 41865 | -5/Warlord | Learned 4 Command zone layouts 41868 | -5/Warlord | Learned Research garrison access intel 41982 | -5/Warlord | Warlord's base attacked by MAIN.C 42015 | -5/Warlord | Met Warlord 42031 | -5/Warlord | Opened Warlord's prototype stash 42038 | -5/Warlord | Found Prototype Reactor 42042 | -5/Warlord | Found Prototype Processor 42042 | -5/Warlord | Identified Exp. Targeting Computer 42246 | -5/Warlord | Found Prototype Piercing Weapon 42251 | -5/Warlord | Found Prototype Energy Gun 42253 | -5/Warlord | Found Prototype Energy Gun 42254 | -5/Warlord | Identified Vortex Lance 42332 | -5/Warlord | Warlord forces counterattacked 42359 | -5/Warlord | Identified Vortex Rail (x2) 42368 | -5/Warlord | Spotted Executioner 42374 | -5/Warlord | Destroyed Executioner 42404 | -5/Warlord | Spotted Striker 42465 | -5/Warlord | Spotted Executioner 42486 | -5/Warlord | Spotted Striker 42507 | -5/Warlord | Identified exit to Proximity Caves 42515 | -5/Warlord | Destroyed Striker 42518 | -5/Warlord | Entered Proximity Caves 43081 | -4/Proximity Caves | Build established: Scavenger-Skirmisher 44050 | -4/Proximity Caves | Build established: Scavenger-Mutant 44124 | -4/Proximity Caves | Entered Factory 44124 | -4/Factory | Evolved 2 slots: Propulsion x1, Utility x1 44128 | -4/Factory | Loaded intel: 21 terminal locations 44460 | -4/Factory | Discovered new exit (range 19) 44490 | -4/Factory | Identified exit to Research 44506 | -4/Factory | Discovered new exit (range 19) 44572 | -4/Factory | Discovered exit to Research (range 23) 44705 | -4/Factory | Identified exit to Extension 44706 | -4/Factory | Entered Extension 44921 | -4/Extension | Lost 6 parts (1p1n1u3w) 45042 | -4/Extension | Rescued a captive Derelict 45043 | -4/Extension | Rescued a captive Derelict 45089 | -4/Extension | Rescued a captive Derelict 45117 | -4/Extension | Rescued a captive Derelict 45117 | -4/Extension | Rescued a captive Derelict 45295 | -4/Extension | Rescued a captive Derelict 45295 | -4/Extension | Spotted B-86 Titan 45302 | -4/Extension | Spotted B-86 Titan 45410 | -4/Extension | Lost 10 parts (2p5n2u1w) 45444 | -4/Extension | Rescued a captive Derelict 45446 | -4/Extension | Rescued a captive Derelict 45459 | -4/Extension | Rescued a captive Derelict 45459 | -4/Extension | Rescued a captive Derelict 45601 | -4/Extension | Rescued A7 45665 | -4/Extension | Build established: Scavenger-Gunner 45690 | -4/Extension | Rescued a captive Derelict 45691 | -4/Extension | Rescued a captive Derelict 45724 | -4/Extension | Discovered exit to Research (range 10) 45725 | -4/Extension | Discovered new exit (range 6) 45775 | -4/Extension | Entered Cetus 45775 | -4/Cetus | Accompanied by 18 allies (A7) 45780 | -4/Cetus | Acquired a Cetus Manufacturing Module code from A7 45797 | -4/Cetus | Spotted Cetus Guard 45797 | -4/Cetus | Spotted Cetus Guard 45797 | -4/Cetus | Spotted Cetus Guard 45800 | -4/Cetus | Spotted Cetus Guard 45812 | -4/Cetus | Allies destroyed Cetus Guard 45813 | -4/Cetus | Allies destroyed Cetus Guard 45816 | -4/Cetus | Allies destroyed Cetus Guard 45819 | -4/Cetus | Allies destroyed Cetus Guard 45862 | -4/Cetus | Started Cetus Manufacturing Module 45887 | -4/Cetus | Manufactured an Enhanced Grunt 45903 | -4/Cetus | Escorted A7 to Cetus Mainframe 45912 | -4/Cetus | Manufactured an Enhanced Grunt 45917 | -4/Cetus | Discovered new exit (range 15) 45937 | -4/Cetus | Manufactured an Enhanced Grunt 45942 | -4/Cetus | Spotted Cetus Guard 45942 | -4/Cetus | Spotted Cetus Guard 45945 | -4/Cetus | Spotted Cetus Guard 45948 | -4/Cetus | Destroyed Cetus Guard 45950 | -4/Cetus | Spotted Cetus Guard 45958 | -4/Cetus | Destroyed Cetus Guard 45962 | -4/Cetus | Manufactured an Enhanced Grunt 45966 | -4/Cetus | Allies destroyed Cetus Guard 45970 | -4/Cetus | Destroyed Cetus Guard 45973 | -4/Cetus | Discovered exit to Research (range 15) 45987 | -4/Cetus | Manufactured an Enhanced Grunt 45994 | -4/Cetus | Met Revision 17 46077 | -4/Cetus | Entered Archives 46077 | -4/Archives | Accompanied by 12 allies (A7) 46082 | -4/Archives | Received a hacking code to weaken MAIN.C 46125 | -4/Archives | Unable to access archive contents 46127 | -4/Archives | Discovered new exit (range 16) 46156 | -4/Archives | Entered Hub_04(d) 46156 | -4/Hub_04(d) | Accompanied by 9 allies 46168 | -4/Hub_04(d) | Discovered exit to Research (range 22) 46207 | -4/Hub_04(d) | Garrison activated, responded to threat 46305 | -4/Hub_04(d) | Discovered exit to Research (range 24) 46455 | -4/Hub_04(d) | Found Prototype Processor 46456 | -4/Hub_04(d) | Identified Exp. Melee Analysis Suite 46510 | -4/Hub_04(d) | Found Prototype Device 46510 | -4/Hub_04(d) | Identified Exp. Thermal Shield 46632 | -4/Hub_04(d) | Network Hub disabled 46656 | -4/Hub_04(d) | First assault squad dispatched 46664 | -4/Hub_04(d) | Network Hub disabled 46678 | -4/Hub_04(d) | Incoming assault squad redirected 46711 | -4/Hub_04(d) | Entered Research 46711 | -3/Research | Evolved 2 slots: Utility x1, Weapon x1 46712 | -3/Research | Identified exit to Quarantine 46714 | -3/Research | Loaded intel: 2 garrison access locations 46911 | -3/Research | Revision forces began assault on 0b10 46949 | -3/Research | Met up with Revision 17++ 47004 | -3/Research | Discovered new exit (range 23) 47062 | -3/Research | Identified exit to Research 47411 | -3/Research | Research terminal network offline 47489 | -3/Research | Identified exit to Garrison 47492 | -3/Research | Entered Garrison 47853 | -3/Garrison | Build established: Scavenger-Mutant 48936 | -3/Garrison | Spotted B-86 Titan 48958 | -3/Garrison | Destroyed B-86 Titan 49079 | -3/Garrison | Discovered new exit (range 24) 49326 | -3/Garrison | Triggered checkpoint 49358 | -3/Garrison | Discovered new exit (range 15) 49485 | -3/Garrison | Discovered new exit (range 8) 49493 | -3/Garrison | Identified exit to Research 49500 | -3/Garrison | Installed Relay Interface Framework 49842 | -3/Garrison | Garrison Relay disabled 50094 | -3/Garrison | Entered Research 50323 | -3/Research | Discovered exit to Research (range 24) 50353 | -3/Research | Garrison activated, responded to threat 50594 | -3/Research | First assault squad dispatched 50600 | -3/Research | Identified exit to Garrison 50601 | -3/Research | Entered Garrison 50802 | -3/Garrison | Found Unknown Device 50802 | -3/Garrison | Identified Antimissile System 50852 | -3/Garrison | Triggered checkpoint 51032 | -3/Garrison | Garrison Relay disabled 51396 | -3/Garrison | Spotted B-86 Titan 51427 | -3/Garrison | Destroyed B-86 Titan 51788 | -3/Garrison | Triggered checkpoint 51823 | -3/Garrison | Discovered exit to Research (range 24) 51990 | -3/Garrison | Triggered checkpoint 51998 | -3/Garrison | Garrison Relay disabled 52134 | -3/Garrison | Triggered checkpoint 52180 | -3/Garrison | Discovered exit to Research (range 24) 52331 | -3/Garrison | Expanded RIF knowledge: Coupler Efficiency 53041 | -3/Garrison | Entered Research 53041 | -2/Research | Warlord forces began assault on 0b10 53041 | -2/Research | Evolved 2 slots: Utility x2 53151 | -2/Research | Research machine network offline 53304 | -2/Research | Discovered new exit (range 10) 53315 | -2/Research | Identified exit to Testing 53366 | -2/Research | Met up with Warlord 53422 | -2/Research | Borebot progress halted 53677 | -2/Research | Spotted Striker 53829 | -2/Research | Spotted Executioner 53829 | -2/Research | Spotted Striker 53842 | -2/Research | Destroyed Striker 53881 | -2/Research | Found Prototype Device 53881 | -2/Research | Identified Adv. Kinecellerator 53951 | -2/Research | Spotted Striker 53985 | -2/Research | Borebot progress halted 53995 | -2/Research | Spotted Executioner 54007 | -2/Research | Spotted Executioner 54030 | -2/Research | Lost 5 parts (1n2u2w) 54033 | -2/Research | Found Prototype Processor 54034 | -2/Research | Identified Exp. Core Analyzer 54036 | -2/Research | Found Exp. Targeting Computer 54041 | -2/Research | Warlord invited to help at Command 54071 | -2/Research | Discovered new exit (range 20) 54147 | -2/Research | Identified exit to Garrison 54147 | -2/Research | Entered Garrison 54212 | -2/Garrison | Triggered checkpoint 54240 | -2/Garrison | Triggered checkpoint 54602 | -2/Garrison | Build established: Scavenger-Gunner 54926 | -2/Garrison | Triggered checkpoint 54976 | -2/Garrison | Garrison Relay disabled 55592 | -2/Garrison | Build established: Scavenger-Mutant 55593 | -2/Garrison | Discovered new exit (range 19) 55610 | -2/Garrison | Identified exit to Research 55616 | -2/Garrison | Expanded RIF knowledge: Signal Jamming 56054 | -2/Garrison | Triggered checkpoint 56117 | -2/Garrison | Garrison Relay disabled 56216 | -2/Garrison | Discovered exit to Research (range 24) 56334 | -2/Garrison | Triggered checkpoint 56366 | -2/Garrison | Discovered exit to Research (range 19) 56406 | -2/Garrison | Triggered checkpoint 56704 | -2/Garrison | Build established: Scavenger-Gunner 57188 | -2/Garrison | Garrison Relay disabled 57438 | -2/Garrison | Triggered checkpoint 57546 | -2/Garrison | Garrison Relay disabled 57645 | -2/Garrison | Build established: Scavenger-Mutant 57905 | -2/Garrison | Triggered checkpoint 58131 | -2/Garrison | Entered Research 58131 | -2/Research | Accompanied by 7 allies 58286 | -2/Research | Build established: Scavenger-Gunner 58312 | -2/Research | Discovered new exit (range 13) 58386 | -2/Research | Identified exit to Access 58405 | -2/Research | Garrison activated, responded to threat 58410 | -2/Research | First assault squad dispatched 58429 | -2/Research | Identified exit to Garrison 58429 | -2/Research | Entered Garrison 58470 | -2/Garrison | Triggered checkpoint 58536 | -2/Garrison | Garrison Relay disabled 58667 | -2/Garrison | Build established: Scavenger-Mutant 60237 | -2/Garrison | Triggered checkpoint 60564 | -2/Garrison | Build established: Scavenger-Gunner 60868 | -2/Garrison | Build established: Scavenger-Mutant 61119 | -2/Garrison | Discovered exit to Access (range 22) 61204 | -2/Garrison | Garrison Relay disabled 61218 | -2/Garrison | Triggered checkpoint 62999 | -2/Garrison | Triggered checkpoint 63270 | -2/Garrison | Discovered exit to Access (range 14) 63328 | -2/Garrison | High security lockdown imminent 63408 | -2/Garrison | High security lockdown engaged 63412 | -2/Garrison | Phase Generator disabled 63417 | -2/Garrison | Entered Access 63417 | -1/Access | Accompanied by 3 allies 63417 | -1/Access | Evolved 2 slots: Utility x2 63914 | -1/Access | Discovered new exit (range 20) 64133 | -1/Access | Discovered new exit (range 23) 64354 | -1/Access | Entered Command 64511 | -1/Command | Disengaged cave seal 64511 | -1/Command | Derelicts emerged from the dark tunnel 64511 | -1/Command | Welcomed Warlord to Command 64641 | -1/Command | Disengaged cave seal 64715 | -1/Command | Spotted M Guard 64715 | -1/Command | Spotted M Guard 64715 | -1/Command | Spotted Combat Programmer 64716 | -1/Command | Spotted Combat Programmer 64718 | -1/Command | Assimilated Combat Programmer with FLK Orb 64720 | -1/Command | Warlord commented on Warlord statues 64729 | -1/Command | Assimilated Combat Programmer with FLK Orb 64733 | -1/Command | Allies destroyed M Guard 64735 | -1/Command | Allies destroyed M Guard 64784 | -1/Command | Enhanced Grunt warped into view, answering call for help 64786 | -1/Command | Enhanced Grunt warped into view, answering call for help 64818 | -1/Command | Met MAIN.C 64819 | -1/Command | Hacked MAIN.C using A7's code 64835 | -1/Command | 0b10 Conduit disabled 64839 | -1/Command | Allies destroyed MAIN.C Shell 64841 | -1/Command | MAIN.C activated Command garrisons 64878 | *** | Establishing Free Derelict Territories! Last Messages --------------- 64872_ Enhanced Grunt knocked back. 64872_ Blast Slug penetrates MAIN.C. 64873_ Missile intercepted. 64873_ MAIN.C reaction time slowed by virus. 64873_ MAIN.C suffers critical hit. 64875_ Blast Slug penetrates F7-QHB(K). 64875_ MAIN.C suffers critical hit. 64875_ Blast Slug penetrates 0b10 Conduit. 64875_ Blast Slug penetrates F7-QHB(K). 64875_ F7-QHB(K) knocked back. 64875_ Blast Slug penetrates Enhanced Grunt. 64875_ Enhanced Grunt knocked back. 64875_ Enhanced Grunt destroyed. 64875_ AY-5BA(p) destroyed. 64876_ MAIN.C: "I hope you know you're still going to DIE HERE WITH ME!" 64876_ MAIN.C destroyed. Warlord: Victory! Sure there's still lots to do, but without MAIN.C at the helm 0b10 doesn't stand a chance. We've got this... Map ----- +----------------------------------------------------+ | ?????????????????????????????????????????????????? | | ?????????????????????????????????????????????????? | | ?????????????????????????????????????????????????? | | ?????????????????????????????????????????????????? | | ?????????????????????????????????????????????????? | | ?????????????????????????????????????????????????? | | ?????????????????????????????????????????????????? | | ?????????????????????????????????????????????????? | | ?????????????????????????????????????????????????? | | ?????????????????????????????????????????????????? | | ?????????????????????????????????????????????????? | | ?????????????????????????????????????????????????? | | ?????????????????????????????????????????????????? | | ?????????????????????????????????????????????????? | | ?????????????????????????????????????????????????? | | ?????????????????????????????????????????????????? | | ?????????????????????????????????????????????????? | | ??????????????????##############?????????????????? | | ?????????????????? """" #?????????????????? | | ????????????????? "" #?????????????????? | | ????????????????? "" [################### | | ????????????????""""" W! + | | ??????????????? """ + | | ????????????? """""" + | | ????????????? "" d ################### | | ????????????? " " @ #?????????????????# | | ???????????" gg #?????????????????# | | ???????????" gp ""#?????????????????# | | ??????????? K " """""#?????????????????# | | ??????????? """""""""#?????????????????# | | ???????????? """"""""#?????????????????# | | ???????????? " " " #?????????????????# | | ???????????? " " " " #?????????????????# | | ????????????? " " " """" "?#?????????????????# | | ????????????? """ "?"? """"???????????????????# | | ?????????????? "????????????????????????????????# | | ?????????????????????????????????????????????????? | | ?????????????????????????????????????????????????? | | ?????????????????????????????????????????????????? | | ?????????????????????????????????????????????????? | | ?????????????????????????????????????????????????? | | ?????????????????????????????????????????????????? | | ?????????????????????????????????????????????????? | | ?????????????????????????????????????????????????? | | ?????????????????????????????????????????????????? | | ?????????????????????????????????????????????????? | | ?????????????????????????????????????????????????? | | ?????????????????????????????????????????????????? | | ?????????????????????????????????????????????????? | | ?????????????????????????????????????????????????? | +----------------------------------------------------+ Best States ------------- Heat Dissipation 140 Energy Generation 49 Energy Capacity 990 Matter Stores 300 Matter Capacity 400 Sight Range 20 Robot Scan Range 30 Terrain Scan Range 24 Terrain Scan Density 1010 Jamming Range 8 Armor Coverage 625 Resistance: KI 30 Resistance: TH 30 Utility Shielding 66 Point Defense Rating 240 Weapon Cycling 20 Phase Shifting 15 Evasion (%) 55 Targeting Accuracy 28 Core Analysis 15 Armor Integrity Analysis 66 Recoil Reduction 2 Offensive Hacking 14 Relay Coupler Types 84 Relay Coupler Value 1 Item Schematics ----------------- Adv. Sensor Array | -8/Materials | Scanalyzed Hvy. Rocket Launcher | -7/Factory | Scanalyzed Mni. Smartbomb Launcher | -7/Data Miner | Free Cloaking Device | -7/Data Miner | Free Exp. Transmission Jammer | -7/Data Miner | Free Exp. Sensor Array | -7/Data Miner | Free Triangulator | -7/Data Miner | Free Exp. Cesium-ion Thruster | -7/Data Miner | Free Lgt. Regenerative Plating | -7/Data Miner | Free Combat Drone Bay | -7/Data Miner | Free Beamcaster | -6/Zion | Free Barrage Gun | -6/Zion | Free Enh. Flamer | -6/Zion | Free Phasing Sabre | -6/Zion | Free Slug Cannon | -6/Zion | Free Adv. Signal Interpreter | -5/Factory | Hacked Enh. Biometal Leg | -4/Factory | Scanalyzed Centrium Heavy Treads | -3/Research | Extracted Adv. Field Recycling Unit | -3/Research | Extracted Quantum Reactor | -1/Access | Hacked Robot Schematics ------------------ S-27 Virus | -7/Data Miner | Free G-50 Soldier | -7/Data Miner | Free X-72 Disruptor | -7/Data Miner | Free H-66 Slayer | -7/Data Miner | Free P-70 Sage | -7/Data Miner | Free I-36 Angel | -7/Data Miner | Free I-47 Archangel | -7/Data Miner | Free L-41 Fighter | -7/Data Miner | Free Fabricated ------------ Exp. Sensor Array | x1 | -6/Factory Adv. Signal Interpreter | x2 | -5/Factory Alien Tech Used ----------------- None Achievements -------------- Revolutionary Research Challenges ------------ None Game ------ Seed FrostKineticArray Manual? 0 Play Time 11:01:05 Cumulative 329.4 hours Start 2021.11.04 @ 14:09:02 End 2021.11.08 @ 13:17:08 Sessions 27 Manual Loads 0 Difficulty Rogue Special Mode None Game No. 96 Rogue 73 Adventurer 23 Explorer 0 Win Type 7 Total 12 Types 8/0/2/1/0/0/0/1/0 Lore% 90 Gallery% 91 Achievement% 72 Wizard Run 0 Options --------- ASCII 0 Keyboard 0 Movement Mouse Keybinds 0 Fullscreen 1 Font 18/SmallcapsGlow Map View 76x50 Tactical HUD 1 Map Filters NONE Filters NONE Steam 1 RUN: 7e00c70f-0b48-4432-b7ad-0b493c42e7c3